{"text_format":"1","workbook":"xlsx","n_sheets":8,"sheets":["RepairFormula","Db","Start","Frontpaper","Instructions","Immidiate_borrower_basis","Country_Information","Summary"],"not_rendered":{"charts":0,"images":0,"macros":1,"external_links":0,"defined_names":2,"comments":1,"pivot_tables":0},"unopened":[],"bounds":{"document_bytes":16777216,"sheet_cells":100000,"rows_first":2000,"rows_last":500,"rows_between":2000,"halvings":0,"cell_chars":16384,"cell_head_chars":4096},"cells_cut":0,"cells_raw":0,"read":"whole","date_system":"1900"}

{"sheet":"RepairFormula","index":0,"n_rows":60,"n_cols":3,"rows_kept":60,"cut":false,"hidden":true,"merged":[]}
["Immidiate_borrower_basis","$T$16",{"$f":"IF(ABS(F16-(SUM(G16:J16)))<=2,\"OK\",\"Error\")","v":"OK"}]
["Immidiate_borrower_basis","$U$16",{"$f":"IF(ABS(F16-(SUM(K16:P16)))<=2,\"OK\",\"Error\")","v":"OK"}]
["Immidiate_borrower_basis","$T$17",{"$f":"IF(ABS(F17-(SUM(G17:J17)))<=2,\"OK\",\"Error\")","v":"OK"}]
["Immidiate_borrower_basis","$U$17",{"$f":"IF(ABS(F17-(SUM(K17:P17)))<=2,\"OK\",\"Error\")","v":"OK"}]
["Immidiate_borrower_basis","$T$18",{"$f":"IF(ABS(F18-(SUM(G18:J18)))<=2,\"OK\",\"Error\")","v":"OK"}]
["Immidiate_borrower_basis","$U$18",{"$f":"IF(ABS(F18-(SUM(K18:P18)))<=2,\"OK\",\"Error\")","v":"OK"}]
["Immidiate_borrower_basis","$T$19",{"$f":"IF(ABS(F19-(SUM(G19:J19)))<=2,\"OK\",\"Error\")","v":"OK"}]
["Immidiate_borrower_basis","$U$19",{"$f":"IF(ABS(F19-(SUM(K19:P19)))<=2,\"OK\",\"Error\")","v":"OK"}]
["Immidiate_borrower_basis","$T$20",{"$f":"IF(ABS(F20-(SUM(G20:J20)))<=2,\"OK\",\"Error\")","v":"OK"}]
["Immidiate_borrower_basis","$U$20",{"$f":"IF(ABS(F20-(SUM(K20:P20)))<=2,\"OK\",\"Error\")","v":"OK"}]
["Immidiate_borrower_basis","$T$21",{"$f":"IF(ABS(F21-(SUM(G21:J21)))<=2,\"OK\",\"Error\")","v":"OK"}]
["Immidiate_borrower_basis","$U$21",{"$f":"IF(ABS(F21-(SUM(K21:P21)))<=2,\"OK\",\"Error\")","v":"OK"}]
["Immidiate_borrower_basis","$T$22",{"$f":"IF(ABS(F22-(SUM(G22:J22)))<=2,\"OK\",\"Error\")","v":"OK"}]
["Immidiate_borrower_basis","$U$22",{"$f":"IF(ABS(F22-(SUM(K22:P22)))<=2,\"OK\",\"Error\")","v":"OK"}]
["Immidiate_borrower_basis","$T$23",{"$f":"IF(ABS(F23-(SUM(G23:J23)))<=2,\"OK\",\"Error\")","v":"OK"}]
["Immidiate_borrower_basis","$U$23",{"$f":"IF(ABS(F23-(SUM(K23:P23)))<=2,\"OK\",\"Error\")","v":"OK"}]
["Immidiate_borrower_basis","$T$24",{"$f":"IF(ABS(F24-(SUM(G24:J24)))<=2,\"OK\",\"Error\")","v":"OK"}]
["Immidiate_borrower_basis","$U$24",{"$f":"IF(ABS(F24-(SUM(K24:P24)))<=2,\"OK\",\"Error\")","v":"OK"}]
["Immidiate_borrower_basis","$T$25",{"$f":"IF(ABS(F25-(SUM(G25:J25)))<=2,\"OK\",\"Error\")","v":"OK"}]
["Immidiate_borrower_basis","$U$25",{"$f":"IF(ABS(F25-(SUM(K25:P25)))<=2,\"OK\",\"Error\")","v":"OK"}]
["Immidiate_borrower_basis","$T$26",{"$f":"IF(ABS(F26-(SUM(G26:J26)))<=2,\"OK\",\"Error\")","v":"OK"}]
["Immidiate_borrower_basis","$U$26",{"$f":"IF(ABS(F26-(SUM(K26:P26)))<=2,\"OK\",\"Error\")","v":"OK"}]
["Immidiate_borrower_basis","$T$27",{"$f":"IF(ABS(F27-(SUM(G27:J27)))<=2,\"OK\",\"Error\")","v":"OK"}]
["Immidiate_borrower_basis","$U$27",{"$f":"IF(ABS(F27-(SUM(K27:P27)))<=2,\"OK\",\"Error\")","v":"OK"}]
["Immidiate_borrower_basis","$T$28",{"$f":"IF(ABS(F28-(SUM(G28:J28)))<=2,\"OK\",\"Error\")","v":"OK"}]
["Immidiate_borrower_basis","$U$28",{"$f":"IF(ABS(F28-(SUM(K28:P28)))<=2,\"OK\",\"Error\")","v":"OK"}]
["Immidiate_borrower_basis","$T$29",{"$f":"IF(ABS(F29-(SUM(G29:J29)))<=2,\"OK\",\"Error\")","v":"OK"}]
["Immidiate_borrower_basis","$U$29",{"$f":"IF(ABS(F29-(SUM(K29:P29)))<=2,\"OK\",\"Error\")","v":"OK"}]
["Immidiate_borrower_basis","$T$30",{"$f":"IF(ABS(F30-(SUM(G30:J30)))<=2,\"OK\",\"Error\")","v":"OK"}]
["Immidiate_borrower_basis","$U$30",{"$f":"IF(ABS(F30-(SUM(K30:P30)))<=2,\"OK\",\"Error\")","v":"OK"}]
["Immidiate_borrower_basis","$T$31",{"$f":"IF(ABS(F31-(SUM(G31:J31)))<=2,\"OK\",\"Error\")","v":"OK"}]
["Immidiate_borrower_basis","$U$31",{"$f":"IF(ABS(F31-(SUM(K31:P31)))<=2,\"OK\",\"Error\")","v":"OK"}]
["Immidiate_borrower_basis","$T$32",{"$f":"IF(ABS(F32-(SUM(G32:J32)))<=2,\"OK\",\"Error\")","v":"OK"}]
["Immidiate_borrower_basis","$U$32",{"$f":"IF(ABS(F32-(SUM(K32:P32)))<=2,\"OK\",\"Error\")","v":"OK"}]
["Immidiate_borrower_basis","$T$33",{"$f":"IF(ABS(F33-(SUM(G33:J33)))<=2,\"OK\",\"Error\")","v":"OK"}]
["Immidiate_borrower_basis","$U$33",{"$f":"IF(ABS(F33-(SUM(K33:P33)))<=2,\"OK\",\"Error\")","v":"OK"}]
["Immidiate_borrower_basis","$T$34",{"$f":"IF(ABS(F34-(SUM(G34:J34)))<=2,\"OK\",\"Error\")","v":"OK"}]
["Immidiate_borrower_basis","$U$34",{"$f":"IF(ABS(F34-(SUM(K34:P34)))<=2,\"OK\",\"Error\")","v":"OK"}]
["Immidiate_borrower_basis","$T$35",{"$f":"IF(ABS(F35-(SUM(G35:J35)))<=2,\"OK\",\"Error\")","v":"OK"}]
["Immidiate_borrower_basis","$U$35",{"$f":"IF(ABS(F35-(SUM(K35:P35)))<=2,\"OK\",\"Error\")","v":"OK"}]
["Immidiate_borrower_basis","$T$36",{"$f":"IF(ABS(F36-(SUM(G36:J36)))<=2,\"OK\",\"Error\")","v":"OK"}]
["Immidiate_borrower_basis","$U$36",{"$f":"IF(ABS(F36-(SUM(K36:P36)))<=2,\"OK\",\"Error\")","v":"OK"}]
["Immidiate_borrower_basis","$T$37",{"$f":"IF(ABS(F37-(SUM(G37:J37)))<=2,\"OK\",\"Error\")","v":"OK"}]
["Immidiate_borrower_basis","$U$37",{"$f":"IF(ABS(F37-(SUM(K37:P37)))<=2,\"OK\",\"Error\")","v":"OK"}]
["Immidiate_borrower_basis","$T$38",{"$f":"IF(ABS(F38-(SUM(G38:J38)))<=2,\"OK\",\"Error\")","v":"OK"}]
["Immidiate_borrower_basis","$U$38",{"$f":"IF(ABS(F38-(SUM(K38:P38)))<=2,\"OK\",\"Error\")","v":"OK"}]
["Immidiate_borrower_basis","$T$39",{"$f":"IF(ABS(F39-(SUM(G39:J39)))<=2,\"OK\",\"Error\")","v":"OK"}]
["Immidiate_borrower_basis","$U$39",{"$f":"IF(ABS(F39-(SUM(K39:P39)))<=2,\"OK\",\"Error\")","v":"OK"}]
["Immidiate_borrower_basis","$T$40",{"$f":"IF(ABS(F40-(SUM(G40:J40)))<=2,\"OK\",\"Error\")","v":"OK"}]
["Immidiate_borrower_basis","$U$40",{"$f":"IF(ABS(F40-(SUM(K40:P40)))<=2,\"OK\",\"Error\")","v":"OK"}]
["Immidiate_borrower_basis","$T$41",{"$f":"IF(ABS(F41-(SUM(G41:J41)))<=2,\"OK\",\"Error\")","v":"OK"}]
["Immidiate_borrower_basis","$U$41",{"$f":"IF(ABS(F41-(SUM(K41:P41)))<=2,\"OK\",\"Error\")","v":"OK"}]
["Immidiate_borrower_basis","$T$42",{"$f":"IF(ABS(F42-(SUM(G42:J42)))<=2,\"OK\",\"Error\")","v":"OK"}]
["Immidiate_borrower_basis","$U$42",{"$f":"IF(ABS(F42-(SUM(K42:P42)))<=2,\"OK\",\"Error\")","v":"OK"}]
["Immidiate_borrower_basis","$T$43",{"$f":"IF(ABS(F43-(SUM(G43:J43)))<=2,\"OK\",\"Error\")","v":"OK"}]
["Immidiate_borrower_basis","$U$43",{"$f":"IF(ABS(F43-(SUM(K43:P43)))<=2,\"OK\",\"Error\")","v":"OK"}]
["Immidiate_borrower_basis","$T$44",{"$f":"IF(ABS(F44-(SUM(G44:J44)))<=2,\"OK\",\"Error\")","v":"OK"}]
["Immidiate_borrower_basis","$U$44",{"$f":"IF(ABS(F44-(SUM(K44:P44)))<=2,\"OK\",\"Error\")","v":"OK"}]
["Immidiate_borrower_basis","$T$45",{"$f":"IF(ABS(F45-(SUM(G45:J45)))<=2,\"OK\",\"Error\")","v":"OK"}]
["Immidiate_borrower_basis","$U$45",{"$f":"IF(ABS(F45-(SUM(K45:P45)))<=2,\"OK\",\"Error\")","v":"OK"}]

{"sheet":"Db","index":1,"n_rows":331,"n_cols":6,"rows_kept":331,"cut":false,"hidden":true,"merged":[]}
["Start","$G$19",{"$f":"IF(ISBLANK(INDIRECT(CONCATENATE(\"'\",A1,\"'\",\"!\",B1))),\"\",(INDIRECT(CONCATENATE(\"'\",A1,\"'\",\"!\",B1))))","v":""},"7_X_X_X_X_X_X_X_X_X_T3","Start","$G$19"]
["Immidiate_borrower_basis","$F$16",0,"5_A_EF_X_X_X_AU_N_V_B_A","Immidiate_borrower_basis","$F$16"]
["Immidiate_borrower_basis","$G$16","","5_A_EF_LR_X_X_AU_N_V_B_A","Immidiate_borrower_basis","$G$16"]
["Immidiate_borrower_basis","$H$16","","5_A_EF_LS_X_X_AU_N_V_B_A","Immidiate_borrower_basis","$H$16"]
["Immidiate_borrower_basis","$I$16","","5_A_EF_LY_X_X_AU_N_V_B_A","Immidiate_borrower_basis","$I$16"]
["Immidiate_borrower_basis","$J$16","","5_A_EF_LZ_X_X_AU_N_V_B_A","Immidiate_borrower_basis","$J$16"]
["Immidiate_borrower_basis","$K$16","","5_A_EF_X_X_X_AU_N12111_V_B_A","Immidiate_borrower_basis","$K$16"]
["Immidiate_borrower_basis","$L$16","","5_A_EF_X_X_X_AU_NXU_V_B_A","Immidiate_borrower_basis","$L$16"]
["Immidiate_borrower_basis","$M$16","","5_A_EF_X_X_X_AU_N122_V_B_A","Immidiate_borrower_basis","$M$16"]
["Immidiate_borrower_basis","$N$16","","5_A_EF_X_X_X_AU_N11_V_B_A","Immidiate_borrower_basis","$N$16"]
["Immidiate_borrower_basis","$O$16","","5_A_EF_X_X_X_AU_N3_V_B_A","Immidiate_borrower_basis","$O$16"]
["Immidiate_borrower_basis","$P$16","","5_A_EF_X_X_X_AU_N9_V_B_A","Immidiate_borrower_basis","$P$16"]
["Immidiate_borrower_basis","$F$17",0,"5_A_EF_X_X_X_AT_N_V_B_A","Immidiate_borrower_basis","$F$17"]
["Immidiate_borrower_basis","$G$17","","5_A_EF_LR_X_X_AT_N_V_B_A","Immidiate_borrower_basis","$G$17"]
["Immidiate_borrower_basis","$H$17","","5_A_EF_LS_X_X_AT_N_V_B_A","Immidiate_borrower_basis","$H$17"]
["Immidiate_borrower_basis","$I$17","","5_A_EF_LY_X_X_AT_N_V_B_A","Immidiate_borrower_basis","$I$17"]
["Immidiate_borrower_basis","$J$17","","5_A_EF_LZ_X_X_AT_N_V_B_A","Immidiate_borrower_basis","$J$17"]
["Immidiate_borrower_basis","$K$17","","5_A_EF_X_X_X_AT_N12111_V_B_A","Immidiate_borrower_basis","$K$17"]
["Immidiate_borrower_basis","$L$17","","5_A_EF_X_X_X_AT_NXU_V_B_A","Immidiate_borrower_basis","$L$17"]
["Immidiate_borrower_basis","$M$17","","5_A_EF_X_X_X_AT_N122_V_B_A","Immidiate_borrower_basis","$M$17"]
["Immidiate_borrower_basis","$N$17","","5_A_EF_X_X_X_AT_N11_V_B_A","Immidiate_borrower_basis","$N$17"]
["Immidiate_borrower_basis","$O$17","","5_A_EF_X_X_X_AT_N3_V_B_A","Immidiate_borrower_basis","$O$17"]
["Immidiate_borrower_basis","$P$17","","5_A_EF_X_X_X_AT_N9_V_B_A","Immidiate_borrower_basis","$P$17"]
["Immidiate_borrower_basis","$F$18",0,"5_A_EF_X_X_X_BE_N_V_B_A","Immidiate_borrower_basis","$F$18"]
["Immidiate_borrower_basis","$G$18","","5_A_EF_LR_X_X_BE_N_V_B_A","Immidiate_borrower_basis","$G$18"]
["Immidiate_borrower_basis","$H$18","","5_A_EF_LS_X_X_BE_N_V_B_A","Immidiate_borrower_basis","$H$18"]
["Immidiate_borrower_basis","$I$18","","5_A_EF_LY_X_X_BE_N_V_B_A","Immidiate_borrower_basis","$I$18"]
["Immidiate_borrower_basis","$J$18","","5_A_EF_LZ_X_X_BE_N_V_B_A","Immidiate_borrower_basis","$J$18"]
["Immidiate_borrower_basis","$K$18","","5_A_EF_X_X_X_BE_N12111_V_B_A","Immidiate_borrower_basis","$K$18"]
["Immidiate_borrower_basis","$L$18","","5_A_EF_X_X_X_BE_NXU_V_B_A","Immidiate_borrower_basis","$L$18"]
["Immidiate_borrower_basis","$M$18","","5_A_EF_X_X_X_BE_N122_V_B_A","Immidiate_borrower_basis","$M$18"]
["Immidiate_borrower_basis","$N$18","","5_A_EF_X_X_X_BE_N11_V_B_A","Immidiate_borrower_basis","$N$18"]
["Immidiate_borrower_basis","$O$18","","5_A_EF_X_X_X_BE_N3_V_B_A","Immidiate_borrower_basis","$O$18"]
["Immidiate_borrower_basis","$P$18","","5_A_EF_X_X_X_BE_N9_V_B_A","Immidiate_borrower_basis","$P$18"]
["Immidiate_borrower_basis","$F$19",0,"5_A_EF_X_X_X_BR_N_V_B_A","Immidiate_borrower_basis","$F$19"]
["Immidiate_borrower_basis","$G$19","","5_A_EF_LR_X_X_BR_N_V_B_A","Immidiate_borrower_basis","$G$19"]
["Immidiate_borrower_basis","$H$19","","5_A_EF_LS_X_X_BR_N_V_B_A","Immidiate_borrower_basis","$H$19"]
["Immidiate_borrower_basis","$I$19","","5_A_EF_LY_X_X_BR_N_V_B_A","Immidiate_borrower_basis","$I$19"]
["Immidiate_borrower_basis","$J$19","","5_A_EF_LZ_X_X_BR_N_V_B_A","Immidiate_borrower_basis","$J$19"]
["Immidiate_borrower_basis","$K$19","","5_A_EF_X_X_X_BR_N12111_V_B_A","Immidiate_borrower_basis","$K$19"]
["Immidiate_borrower_basis","$L$19","","5_A_EF_X_X_X_BR_NXU_V_B_A","Immidiate_borrower_basis","$L$19"]
["Immidiate_borrower_basis","$M$19","","5_A_EF_X_X_X_BR_N122_V_B_A","Immidiate_borrower_basis","$M$19"]
["Immidiate_borrower_basis","$N$19","","5_A_EF_X_X_X_BR_N11_V_B_A","Immidiate_borrower_basis","$N$19"]
["Immidiate_borrower_basis","$O$19","","5_A_EF_X_X_X_BR_N3_V_B_A","Immidiate_borrower_basis","$O$19"]
["Immidiate_borrower_basis","$P$19","","5_A_EF_X_X_X_BR_N9_V_B_A","Immidiate_borrower_basis","$P$19"]
["Immidiate_borrower_basis","$F$20",0,"5_A_EF_X_X_X_CA_N_V_B_A","Immidiate_borrower_basis","$F$20"]
["Immidiate_borrower_basis","$G$20","","5_A_EF_LR_X_X_CA_N_V_B_A","Immidiate_borrower_basis","$G$20"]
["Immidiate_borrower_basis","$H$20","","5_A_EF_LS_X_X_CA_N_V_B_A","Immidiate_borrower_basis","$H$20"]
["Immidiate_borrower_basis","$I$20","","5_A_EF_LY_X_X_CA_N_V_B_A","Immidiate_borrower_basis","$I$20"]
["Immidiate_borrower_basis","$J$20","","5_A_EF_LZ_X_X_CA_N_V_B_A","Immidiate_borrower_basis","$J$20"]
["Immidiate_borrower_basis","$K$20","","5_A_EF_X_X_X_CA_N12111_V_B_A","Immidiate_borrower_basis","$K$20"]
["Immidiate_borrower_basis","$L$20","","5_A_EF_X_X_X_CA_NXU_V_B_A","Immidiate_borrower_basis","$L$20"]
["Immidiate_borrower_basis","$M$20","","5_A_EF_X_X_X_CA_N122_V_B_A","Immidiate_borrower_basis","$M$20"]
["Immidiate_borrower_basis","$N$20","","5_A_EF_X_X_X_CA_N11_V_B_A","Immidiate_borrower_basis","$N$20"]
["Immidiate_borrower_basis","$O$20","","5_A_EF_X_X_X_CA_N3_V_B_A","Immidiate_borrower_basis","$O$20"]
["Immidiate_borrower_basis","$P$20","","5_A_EF_X_X_X_CA_N9_V_B_A","Immidiate_borrower_basis","$P$20"]
["Immidiate_borrower_basis","$F$21",0,"5_A_EF_X_X_X_CL_N_V_B_A","Immidiate_borrower_basis","$F$21"]
["Immidiate_borrower_basis","$G$21","","5_A_EF_LR_X_X_CL_N_V_B_A","Immidiate_borrower_basis","$G$21"]
["Immidiate_borrower_basis","$H$21","","5_A_EF_LS_X_X_CL_N_V_B_A","Immidiate_borrower_basis","$H$21"]
["Immidiate_borrower_basis","$I$21","","5_A_EF_LY_X_X_CL_N_V_B_A","Immidiate_borrower_basis","$I$21"]
["Immidiate_borrower_basis","$J$21","","5_A_EF_LZ_X_X_CL_N_V_B_A","Immidiate_borrower_basis","$J$21"]
["Immidiate_borrower_basis","$K$21","","5_A_EF_X_X_X_CL_N12111_V_B_A","Immidiate_borrower_basis","$K$21"]
["Immidiate_borrower_basis","$L$21","","5_A_EF_X_X_X_CL_NXU_V_B_A","Immidiate_borrower_basis","$L$21"]
["Immidiate_borrower_basis","$M$21","","5_A_EF_X_X_X_CL_N122_V_B_A","Immidiate_borrower_basis","$M$21"]
["Immidiate_borrower_basis","$N$21",{"$f":"IF(ISBLANK(INDIRECT(CONCATENATE(\"'\",A65,\"'\",\"!\",B65))),\"\",(INDIRECT(CONCATENATE(\"'\",A65,\"'\",\"!\",B65))))","v":""},"5_A_EF_X_X_X_CL_N11_V_B_A","Immidiate_borrower_basis","$N$21"]
["Immidiate_borrower_basis","$O$21","","5_A_EF_X_X_X_CL_N3_V_B_A","Immidiate_borrower_basis","$O$21"]
["Immidiate_borrower_basis","$P$21","","5_A_EF_X_X_X_CL_N9_V_B_A","Immidiate_borrower_basis","$P$21"]
["Immidiate_borrower_basis","$F$22",0,"5_A_EF_X_X_X_DK_N_V_B_A","Immidiate_borrower_basis","$F$22"]
["Immidiate_borrower_basis","$G$22","","5_A_EF_LR_X_X_DK_N_V_B_A","Immidiate_borrower_basis","$G$22"]
["Immidiate_borrower_basis","$H$22","","5_A_EF_LS_X_X_DK_N_V_B_A","Immidiate_borrower_basis","$H$22"]
["Immidiate_borrower_basis","$I$22","","5_A_EF_LY_X_X_DK_N_V_B_A","Immidiate_borrower_basis","$I$22"]
["Immidiate_borrower_basis","$J$22","","5_A_EF_LZ_X_X_DK_N_V_B_A","Immidiate_borrower_basis","$J$22"]
["Immidiate_borrower_basis","$K$22","","5_A_EF_X_X_X_DK_N12111_V_B_A","Immidiate_borrower_basis","$K$22"]
["Immidiate_borrower_basis","$L$22","","5_A_EF_X_X_X_DK_NXU_V_B_A","Immidiate_borrower_basis","$L$22"]
["Immidiate_borrower_basis","$M$22","","5_A_EF_X_X_X_DK_N122_V_B_A","Immidiate_borrower_basis","$M$22"]
["Immidiate_borrower_basis","$N$22","","5_A_EF_X_X_X_DK_N11_V_B_A","Immidiate_borrower_basis","$N$22"]
["Immidiate_borrower_basis","$O$22","","5_A_EF_X_X_X_DK_N3_V_B_A","Immidiate_borrower_basis","$O$22"]
["Immidiate_borrower_basis","$P$22","","5_A_EF_X_X_X_DK_N9_V_B_A","Immidiate_borrower_basis","$P$22"]
["Immidiate_borrower_basis","$F$23",0,"5_A_EF_X_X_X_FI_N_V_B_A","Immidiate_borrower_basis","$F$23"]
["Immidiate_borrower_basis","$G$23","","5_A_EF_LR_X_X_FI_N_V_B_A","Immidiate_borrower_basis","$G$23"]
["Immidiate_borrower_basis","$H$23","","5_A_EF_LS_X_X_FI_N_V_B_A","Immidiate_borrower_basis","$H$23"]
["Immidiate_borrower_basis","$I$23","","5_A_EF_LY_X_X_FI_N_V_B_A","Immidiate_borrower_basis","$I$23"]
["Immidiate_borrower_basis","$J$23","","5_A_EF_LZ_X_X_FI_N_V_B_A","Immidiate_borrower_basis","$J$23"]
["Immidiate_borrower_basis","$K$23","","5_A_EF_X_X_X_FI_N12111_V_B_A","Immidiate_borrower_basis","$K$23"]
["Immidiate_borrower_basis","$L$23","","5_A_EF_X_X_X_FI_NXU_V_B_A","Immidiate_borrower_basis","$L$23"]
["Immidiate_borrower_basis","$M$23","","5_A_EF_X_X_X_FI_N122_V_B_A","Immidiate_borrower_basis","$M$23"]
["Immidiate_borrower_basis","$N$23","","5_A_EF_X_X_X_FI_N11_V_B_A","Immidiate_borrower_basis","$N$23"]
["Immidiate_borrower_basis","$O$23","","5_A_EF_X_X_X_FI_N3_V_B_A","Immidiate_borrower_basis","$O$23"]
["Immidiate_borrower_basis","$P$23","","5_A_EF_X_X_X_FI_N9_V_B_A","Immidiate_borrower_basis","$P$23"]
["Immidiate_borrower_basis","$F$24",0,"5_A_EF_X_X_X_FR_N_V_B_A","Immidiate_borrower_basis","$F$24"]
["Immidiate_borrower_basis","$G$24","","5_A_EF_LR_X_X_FR_N_V_B_A","Immidiate_borrower_basis","$G$24"]
["Immidiate_borrower_basis","$H$24","","5_A_EF_LS_X_X_FR_N_V_B_A","Immidiate_borrower_basis","$H$24"]
["Immidiate_borrower_basis","$I$24","","5_A_EF_LY_X_X_FR_N_V_B_A","Immidiate_borrower_basis","$I$24"]
["Immidiate_borrower_basis","$J$24","","5_A_EF_LZ_X_X_FR_N_V_B_A","Immidiate_borrower_basis","$J$24"]
["Immidiate_borrower_basis","$K$24","","5_A_EF_X_X_X_FR_N12111_V_B_A","Immidiate_borrower_basis","$K$24"]
["Immidiate_borrower_basis","$L$24","","5_A_EF_X_X_X_FR_NXU_V_B_A","Immidiate_borrower_basis","$L$24"]
["Immidiate_borrower_basis","$M$24","","5_A_EF_X_X_X_FR_N122_V_B_A","Immidiate_borrower_basis","$M$24"]
["Immidiate_borrower_basis","$N$24","","5_A_EF_X_X_X_FR_N11_V_B_A","Immidiate_borrower_basis","$N$24"]
["Immidiate_borrower_basis","$O$24","","5_A_EF_X_X_X_FR_N3_V_B_A","Immidiate_borrower_basis","$O$24"]
["Immidiate_borrower_basis","$P$24","","5_A_EF_X_X_X_FR_N9_V_B_A","Immidiate_borrower_basis","$P$24"]
["Immidiate_borrower_basis","$F$25",0,"5_A_EF_X_X_X_DE_N_V_B_A","Immidiate_borrower_basis","$F$25"]
["Immidiate_borrower_basis","$G$25","","5_A_EF_LR_X_X_DE_N_V_B_A","Immidiate_borrower_basis","$G$25"]
["Immidiate_borrower_basis","$H$25","","5_A_EF_LS_X_X_DE_N_V_B_A","Immidiate_borrower_basis","$H$25"]
["Immidiate_borrower_basis","$I$25","","5_A_EF_LY_X_X_DE_N_V_B_A","Immidiate_borrower_basis","$I$25"]
["Immidiate_borrower_basis","$J$25","","5_A_EF_LZ_X_X_DE_N_V_B_A","Immidiate_borrower_basis","$J$25"]
["Immidiate_borrower_basis","$K$25","","5_A_EF_X_X_X_DE_N12111_V_B_A","Immidiate_borrower_basis","$K$25"]
["Immidiate_borrower_basis","$L$25","","5_A_EF_X_X_X_DE_NXU_V_B_A","Immidiate_borrower_basis","$L$25"]
["Immidiate_borrower_basis","$M$25","","5_A_EF_X_X_X_DE_N122_V_B_A","Immidiate_borrower_basis","$M$25"]
["Immidiate_borrower_basis","$N$25","","5_A_EF_X_X_X_DE_N11_V_B_A","Immidiate_borrower_basis","$N$25"]
["Immidiate_borrower_basis","$O$25","","5_A_EF_X_X_X_DE_N3_V_B_A","Immidiate_borrower_basis","$O$25"]
["Immidiate_borrower_basis","$P$25","","5_A_EF_X_X_X_DE_N9_V_B_A","Immidiate_borrower_basis","$P$25"]
["Immidiate_borrower_basis","$F$26",0,"5_A_EF_X_X_X_GR_N_V_B_A","Immidiate_borrower_basis","$F$26"]
["Immidiate_borrower_basis","$G$26","","5_A_EF_LR_X_X_GR_N_V_B_A","Immidiate_borrower_basis","$G$26"]
["Immidiate_borrower_basis","$H$26","","5_A_EF_LS_X_X_GR_N_V_B_A","Immidiate_borrower_basis","$H$26"]
["Immidiate_borrower_basis","$I$26","","5_A_EF_LY_X_X_GR_N_V_B_A","Immidiate_borrower_basis","$I$26"]
["Immidiate_borrower_basis","$J$26","","5_A_EF_LZ_X_X_GR_N_V_B_A","Immidiate_borrower_basis","$J$26"]
["Immidiate_borrower_basis","$K$26","","5_A_EF_X_X_X_GR_N12111_V_B_A","Immidiate_borrower_basis","$K$26"]
["Immidiate_borrower_basis","$L$26","","5_A_EF_X_X_X_GR_NXU_V_B_A","Immidiate_borrower_basis","$L$26"]
["Immidiate_borrower_basis","$M$26","","5_A_EF_X_X_X_GR_N122_V_B_A","Immidiate_borrower_basis","$M$26"]
["Immidiate_borrower_basis","$N$26","","5_A_EF_X_X_X_GR_N11_V_B_A","Immidiate_borrower_basis","$N$26"]
["Immidiate_borrower_basis","$O$26","","5_A_EF_X_X_X_GR_N3_V_B_A","Immidiate_borrower_basis","$O$26"]
["Immidiate_borrower_basis","$P$26","","5_A_EF_X_X_X_GR_N9_V_B_A","Immidiate_borrower_basis","$P$26"]
["Immidiate_borrower_basis","$F$27",0,"5_A_EF_X_X_X_HK_N_V_B_A","Immidiate_borrower_basis","$F$27"]
["Immidiate_borrower_basis","$G$27","","5_A_EF_LR_X_X_HK_N_V_B_A","Immidiate_borrower_basis","$G$27"]
["Immidiate_borrower_basis","$H$27","","5_A_EF_LS_X_X_HK_N_V_B_A","Immidiate_borrower_basis","$H$27"]
["Immidiate_borrower_basis","$I$27","","5_A_EF_LY_X_X_HK_N_V_B_A","Immidiate_borrower_basis","$I$27"]
["Immidiate_borrower_basis","$J$27","","5_A_EF_LZ_X_X_HK_N_V_B_A","Immidiate_borrower_basis","$J$27"]
["Immidiate_borrower_basis","$K$27","","5_A_EF_X_X_X_HK_N12111_V_B_A","Immidiate_borrower_basis","$K$27"]
["Immidiate_borrower_basis","$L$27",{"$f":"IF(ISBLANK(INDIRECT(CONCATENATE(\"'\",A129,\"'\",\"!\",B129))),\"\",(INDIRECT(CONCATENATE(\"'\",A129,\"'\",\"!\",B129))))","v":""},"5_A_EF_X_X_X_HK_NXU_V_B_A","Immidiate_borrower_basis","$L$27"]
["Immidiate_borrower_basis","$M$27","","5_A_EF_X_X_X_HK_N122_V_B_A","Immidiate_borrower_basis","$M$27"]
["Immidiate_borrower_basis","$N$27","","5_A_EF_X_X_X_HK_N11_V_B_A","Immidiate_borrower_basis","$N$27"]
["Immidiate_borrower_basis","$O$27","","5_A_EF_X_X_X_HK_N3_V_B_A","Immidiate_borrower_basis","$O$27"]
["Immidiate_borrower_basis","$P$27","","5_A_EF_X_X_X_HK_N9_V_B_A","Immidiate_borrower_basis","$P$27"]
["Immidiate_borrower_basis","$F$28",0,"5_A_EF_X_X_X_IN_N_V_B_A","Immidiate_borrower_basis","$F$28"]
["Immidiate_borrower_basis","$G$28","","5_A_EF_LR_X_X_IN_N_V_B_A","Immidiate_borrower_basis","$G$28"]
["Immidiate_borrower_basis","$H$28","","5_A_EF_LS_X_X_IN_N_V_B_A","Immidiate_borrower_basis","$H$28"]
["Immidiate_borrower_basis","$I$28","","5_A_EF_LY_X_X_IN_N_V_B_A","Immidiate_borrower_basis","$I$28"]
["Immidiate_borrower_basis","$J$28","","5_A_EF_LZ_X_X_IN_N_V_B_A","Immidiate_borrower_basis","$J$28"]
["Immidiate_borrower_basis","$K$28","","5_A_EF_X_X_X_IN_N12111_V_B_A","Immidiate_borrower_basis","$K$28"]
["Immidiate_borrower_basis","$L$28","","5_A_EF_X_X_X_IN_NXU_V_B_A","Immidiate_borrower_basis","$L$28"]
["Immidiate_borrower_basis","$M$28","","5_A_EF_X_X_X_IN_N122_V_B_A","Immidiate_borrower_basis","$M$28"]
["Immidiate_borrower_basis","$N$28","","5_A_EF_X_X_X_IN_N11_V_B_A","Immidiate_borrower_basis","$N$28"]
["Immidiate_borrower_basis","$O$28","","5_A_EF_X_X_X_IN_N3_V_B_A","Immidiate_borrower_basis","$O$28"]
["Immidiate_borrower_basis","$P$28","","5_A_EF_X_X_X_IN_N9_V_B_A","Immidiate_borrower_basis","$P$28"]
["Immidiate_borrower_basis","$F$29",0,"5_A_EF_X_X_X_IE_N_V_B_A","Immidiate_borrower_basis","$F$29"]
["Immidiate_borrower_basis","$G$29","","5_A_EF_LR_X_X_IE_N_V_B_A","Immidiate_borrower_basis","$G$29"]
["Immidiate_borrower_basis","$H$29","","5_A_EF_LS_X_X_IE_N_V_B_A","Immidiate_borrower_basis","$H$29"]
["Immidiate_borrower_basis","$I$29","","5_A_EF_LY_X_X_IE_N_V_B_A","Immidiate_borrower_basis","$I$29"]
["Immidiate_borrower_basis","$J$29","","5_A_EF_LZ_X_X_IE_N_V_B_A","Immidiate_borrower_basis","$J$29"]
["Immidiate_borrower_basis","$K$29","","5_A_EF_X_X_X_IE_N12111_V_B_A","Immidiate_borrower_basis","$K$29"]
["Immidiate_borrower_basis","$L$29","","5_A_EF_X_X_X_IE_NXU_V_B_A","Immidiate_borrower_basis","$L$29"]
["Immidiate_borrower_basis","$M$29","","5_A_EF_X_X_X_IE_N122_V_B_A","Immidiate_borrower_basis","$M$29"]
["Immidiate_borrower_basis","$N$29","","5_A_EF_X_X_X_IE_N11_V_B_A","Immidiate_borrower_basis","$N$29"]
["Immidiate_borrower_basis","$O$29","","5_A_EF_X_X_X_IE_N3_V_B_A","Immidiate_borrower_basis","$O$29"]
["Immidiate_borrower_basis","$P$29","","5_A_EF_X_X_X_IE_N9_V_B_A","Immidiate_borrower_basis","$P$29"]
["Immidiate_borrower_basis","$F$30",0,"5_A_EF_X_X_X_IT_N_V_B_A","Immidiate_borrower_basis","$F$30"]
["Immidiate_borrower_basis","$G$30","","5_A_EF_LR_X_X_IT_N_V_B_A","Immidiate_borrower_basis","$G$30"]
["Immidiate_borrower_basis","$H$30","","5_A_EF_LS_X_X_IT_N_V_B_A","Immidiate_borrower_basis","$H$30"]
["Immidiate_borrower_basis","$I$30","","5_A_EF_LY_X_X_IT_N_V_B_A","Immidiate_borrower_basis","$I$30"]
["Immidiate_borrower_basis","$J$30","","5_A_EF_LZ_X_X_IT_N_V_B_A","Immidiate_borrower_basis","$J$30"]
["Immidiate_borrower_basis","$K$30","","5_A_EF_X_X_X_IT_N12111_V_B_A","Immidiate_borrower_basis","$K$30"]
["Immidiate_borrower_basis","$L$30","","5_A_EF_X_X_X_IT_NXU_V_B_A","Immidiate_borrower_basis","$L$30"]
["Immidiate_borrower_basis","$M$30","","5_A_EF_X_X_X_IT_N122_V_B_A","Immidiate_borrower_basis","$M$30"]
["Immidiate_borrower_basis","$N$30","","5_A_EF_X_X_X_IT_N11_V_B_A","Immidiate_borrower_basis","$N$30"]
["Immidiate_borrower_basis","$O$30","","5_A_EF_X_X_X_IT_N3_V_B_A","Immidiate_borrower_basis","$O$30"]
["Immidiate_borrower_basis","$P$30","","5_A_EF_X_X_X_IT_N9_V_B_A","Immidiate_borrower_basis","$P$30"]
["Immidiate_borrower_basis","$F$31",0,"5_A_EF_X_X_X_JP_N_V_B_A","Immidiate_borrower_basis","$F$31"]
["Immidiate_borrower_basis","$G$31","","5_A_EF_LR_X_X_JP_N_V_B_A","Immidiate_borrower_basis","$G$31"]
["Immidiate_borrower_basis","$H$31","","5_A_EF_LS_X_X_JP_N_V_B_A","Immidiate_borrower_basis","$H$31"]
["Immidiate_borrower_basis","$I$31","","5_A_EF_LY_X_X_JP_N_V_B_A","Immidiate_borrower_basis","$I$31"]
["Immidiate_borrower_basis","$J$31","","5_A_EF_LZ_X_X_JP_N_V_B_A","Immidiate_borrower_basis","$J$31"]
["Immidiate_borrower_basis","$K$31","","5_A_EF_X_X_X_JP_N12111_V_B_A","Immidiate_borrower_basis","$K$31"]
["Immidiate_borrower_basis","$L$31","","5_A_EF_X_X_X_JP_NXU_V_B_A","Immidiate_borrower_basis","$L$31"]
["Immidiate_borrower_basis","$M$31","","5_A_EF_X_X_X_JP_N122_V_B_A","Immidiate_borrower_basis","$M$31"]
["Immidiate_borrower_basis","$N$31","","5_A_EF_X_X_X_JP_N11_V_B_A","Immidiate_borrower_basis","$N$31"]
["Immidiate_borrower_basis","$O$31","","5_A_EF_X_X_X_JP_N3_V_B_A","Immidiate_borrower_basis","$O$31"]
["Immidiate_borrower_basis","$P$31","","5_A_EF_X_X_X_JP_N9_V_B_A","Immidiate_borrower_basis","$P$31"]
["Immidiate_borrower_basis","$F$32",0,"5_A_EF_X_X_X_LU_N_V_B_A","Immidiate_borrower_basis","$F$32"]
["Immidiate_borrower_basis","$G$32","","5_A_EF_LR_X_X_LU_N_V_B_A","Immidiate_borrower_basis","$G$32"]
["Immidiate_borrower_basis","$H$32","","5_A_EF_LS_X_X_LU_N_V_B_A","Immidiate_borrower_basis","$H$32"]
["Immidiate_borrower_basis","$I$32","","5_A_EF_LY_X_X_LU_N_V_B_A","Immidiate_borrower_basis","$I$32"]
["Immidiate_borrower_basis","$J$32","","5_A_EF_LZ_X_X_LU_N_V_B_A","Immidiate_borrower_basis","$J$32"]
["Immidiate_borrower_basis","$K$32","","5_A_EF_X_X_X_LU_N12111_V_B_A","Immidiate_borrower_basis","$K$32"]
["Immidiate_borrower_basis","$L$32","","5_A_EF_X_X_X_LU_NXU_V_B_A","Immidiate_borrower_basis","$L$32"]
["Immidiate_borrower_basis","$M$32","","5_A_EF_X_X_X_LU_N122_V_B_A","Immidiate_borrower_basis","$M$32"]
["Immidiate_borrower_basis","$N$32","","5_A_EF_X_X_X_LU_N11_V_B_A","Immidiate_borrower_basis","$N$32"]
["Immidiate_borrower_basis","$O$32","","5_A_EF_X_X_X_LU_N3_V_B_A","Immidiate_borrower_basis","$O$32"]
["Immidiate_borrower_basis","$P$32","","5_A_EF_X_X_X_LU_N9_V_B_A","Immidiate_borrower_basis","$P$32"]
["Immidiate_borrower_basis","$F$33",0,"5_A_EF_X_X_X_MX_N_V_B_A","Immidiate_borrower_basis","$F$33"]
["Immidiate_borrower_basis","$G$33","","5_A_EF_LR_X_X_MX_N_V_B_A","Immidiate_borrower_basis","$G$33"]
["Immidiate_borrower_basis","$H$33","","5_A_EF_LS_X_X_MX_N_V_B_A","Immidiate_borrower_basis","$H$33"]
["Immidiate_borrower_basis","$I$33","","5_A_EF_LY_X_X_MX_N_V_B_A","Immidiate_borrower_basis","$I$33"]
["Immidiate_borrower_basis","$J$33",{"$f":"IF(ISBLANK(INDIRECT(CONCATENATE(\"'\",A193,\"'\",\"!\",B193))),\"\",(INDIRECT(CONCATENATE(\"'\",A193,\"'\",\"!\",B193))))","v":""},"5_A_EF_LZ_X_X_MX_N_V_B_A","Immidiate_borrower_basis","$J$33"]
["Immidiate_borrower_basis","$K$33","","5_A_EF_X_X_X_MX_N12111_V_B_A","Immidiate_borrower_basis","$K$33"]
["Immidiate_borrower_basis","$L$33","","5_A_EF_X_X_X_MX_NXU_V_B_A","Immidiate_borrower_basis","$L$33"]
["Immidiate_borrower_basis","$M$33","","5_A_EF_X_X_X_MX_N122_V_B_A","Immidiate_borrower_basis","$M$33"]
["Immidiate_borrower_basis","$N$33","","5_A_EF_X_X_X_MX_N11_V_B_A","Immidiate_borrower_basis","$N$33"]
["Immidiate_borrower_basis","$O$33","","5_A_EF_X_X_X_MX_N3_V_B_A","Immidiate_borrower_basis","$O$33"]
["Immidiate_borrower_basis","$P$33","","5_A_EF_X_X_X_MX_N9_V_B_A","Immidiate_borrower_basis","$P$33"]
["Immidiate_borrower_basis","$F$34",0,"5_A_EF_X_X_X_NL_N_V_B_A","Immidiate_borrower_basis","$F$34"]
["Immidiate_borrower_basis","$G$34","","5_A_EF_LR_X_X_NL_N_V_B_A","Immidiate_borrower_basis","$G$34"]
["Immidiate_borrower_basis","$H$34","","5_A_EF_LS_X_X_NL_N_V_B_A","Immidiate_borrower_basis","$H$34"]
["Immidiate_borrower_basis","$I$34","","5_A_EF_LY_X_X_NL_N_V_B_A","Immidiate_borrower_basis","$I$34"]
["Immidiate_borrower_basis","$J$34","","5_A_EF_LZ_X_X_NL_N_V_B_A","Immidiate_borrower_basis","$J$34"]
["Immidiate_borrower_basis","$K$34","","5_A_EF_X_X_X_NL_N12111_V_B_A","Immidiate_borrower_basis","$K$34"]
["Immidiate_borrower_basis","$L$34","","5_A_EF_X_X_X_NL_NXU_V_B_A","Immidiate_borrower_basis","$L$34"]
["Immidiate_borrower_basis","$M$34","","5_A_EF_X_X_X_NL_N122_V_B_A","Immidiate_borrower_basis","$M$34"]
["Immidiate_borrower_basis","$N$34","","5_A_EF_X_X_X_NL_N11_V_B_A","Immidiate_borrower_basis","$N$34"]
["Immidiate_borrower_basis","$O$34","","5_A_EF_X_X_X_NL_N3_V_B_A","Immidiate_borrower_basis","$O$34"]
["Immidiate_borrower_basis","$P$34","","5_A_EF_X_X_X_NL_N9_V_B_A","Immidiate_borrower_basis","$P$34"]
["Immidiate_borrower_basis","$F$35",0,"5_A_EF_X_X_X_NO_N_V_B_A","Immidiate_borrower_basis","$F$35"]
["Immidiate_borrower_basis","$G$35","","5_A_EF_LR_X_X_NO_N_V_B_A","Immidiate_borrower_basis","$G$35"]
["Immidiate_borrower_basis","$H$35","","5_A_EF_LS_X_X_NO_N_V_B_A","Immidiate_borrower_basis","$H$35"]
["Immidiate_borrower_basis","$I$35","","5_A_EF_LY_X_X_NO_N_V_B_A","Immidiate_borrower_basis","$I$35"]
["Immidiate_borrower_basis","$J$35","","5_A_EF_LZ_X_X_NO_N_V_B_A","Immidiate_borrower_basis","$J$35"]
["Immidiate_borrower_basis","$K$35","","5_A_EF_X_X_X_NO_N12111_V_B_A","Immidiate_borrower_basis","$K$35"]
["Immidiate_borrower_basis","$L$35","","5_A_EF_X_X_X_NO_NXU_V_B_A","Immidiate_borrower_basis","$L$35"]
["Immidiate_borrower_basis","$M$35","","5_A_EF_X_X_X_NO_N122_V_B_A","Immidiate_borrower_basis","$M$35"]
["Immidiate_borrower_basis","$N$35","","5_A_EF_X_X_X_NO_N11_V_B_A","Immidiate_borrower_basis","$N$35"]
["Immidiate_borrower_basis","$O$35","","5_A_EF_X_X_X_NO_N3_V_B_A","Immidiate_borrower_basis","$O$35"]
["Immidiate_borrower_basis","$P$35","","5_A_EF_X_X_X_NO_N9_V_B_A","Immidiate_borrower_basis","$P$35"]
["Immidiate_borrower_basis","$F$36",0,"5_A_EF_X_X_X_PA_N_V_B_A","Immidiate_borrower_basis","$F$36"]
["Immidiate_borrower_basis","$G$36","","5_A_EF_LR_X_X_PA_N_V_B_A","Immidiate_borrower_basis","$G$36"]
["Immidiate_borrower_basis","$H$36","","5_A_EF_LS_X_X_PA_N_V_B_A","Immidiate_borrower_basis","$H$36"]
["Immidiate_borrower_basis","$I$36","","5_A_EF_LY_X_X_PA_N_V_B_A","Immidiate_borrower_basis","$I$36"]
["Immidiate_borrower_basis","$J$36","","5_A_EF_LZ_X_X_PA_N_V_B_A","Immidiate_borrower_basis","$J$36"]
["Immidiate_borrower_basis","$K$36","","5_A_EF_X_X_X_PA_N12111_V_B_A","Immidiate_borrower_basis","$K$36"]
["Immidiate_borrower_basis","$L$36","","5_A_EF_X_X_X_PA_NXU_V_B_A","Immidiate_borrower_basis","$L$36"]
["Immidiate_borrower_basis","$M$36","","5_A_EF_X_X_X_PA_N122_V_B_A","Immidiate_borrower_basis","$M$36"]
["Immidiate_borrower_basis","$N$36","","5_A_EF_X_X_X_PA_N11_V_B_A","Immidiate_borrower_basis","$N$36"]
["Immidiate_borrower_basis","$O$36","","5_A_EF_X_X_X_PA_N3_V_B_A","Immidiate_borrower_basis","$O$36"]
["Immidiate_borrower_basis","$P$36","","5_A_EF_X_X_X_PA_N9_V_B_A","Immidiate_borrower_basis","$P$36"]
["Immidiate_borrower_basis","$F$37",0,"5_A_EF_X_X_X_PT_N_V_B_A","Immidiate_borrower_basis","$F$37"]
["Immidiate_borrower_basis","$G$37","","5_A_EF_LR_X_X_PT_N_V_B_A","Immidiate_borrower_basis","$G$37"]
["Immidiate_borrower_basis","$H$37","","5_A_EF_LS_X_X_PT_N_V_B_A","Immidiate_borrower_basis","$H$37"]
["Immidiate_borrower_basis","$I$37","","5_A_EF_LY_X_X_PT_N_V_B_A","Immidiate_borrower_basis","$I$37"]
["Immidiate_borrower_basis","$J$37","","5_A_EF_LZ_X_X_PT_N_V_B_A","Immidiate_borrower_basis","$J$37"]
["Immidiate_borrower_basis","$K$37","","5_A_EF_X_X_X_PT_N12111_V_B_A","Immidiate_borrower_basis","$K$37"]
["Immidiate_borrower_basis","$L$37","","5_A_EF_X_X_X_PT_NXU_V_B_A","Immidiate_borrower_basis","$L$37"]
["Immidiate_borrower_basis","$M$37","","5_A_EF_X_X_X_PT_N122_V_B_A","Immidiate_borrower_basis","$M$37"]
["Immidiate_borrower_basis","$N$37","","5_A_EF_X_X_X_PT_N11_V_B_A","Immidiate_borrower_basis","$N$37"]
["Immidiate_borrower_basis","$O$37","","5_A_EF_X_X_X_PT_N3_V_B_A","Immidiate_borrower_basis","$O$37"]
["Immidiate_borrower_basis","$P$37","","5_A_EF_X_X_X_PT_N9_V_B_A","Immidiate_borrower_basis","$P$37"]
["Immidiate_borrower_basis","$F$38",0,"5_A_EF_X_X_X_SG_N_V_B_A","Immidiate_borrower_basis","$F$38"]
["Immidiate_borrower_basis","$G$38","","5_A_EF_LR_X_X_SG_N_V_B_A","Immidiate_borrower_basis","$G$38"]
["Immidiate_borrower_basis","$H$38","","5_A_EF_LS_X_X_SG_N_V_B_A","Immidiate_borrower_basis","$H$38"]
["Immidiate_borrower_basis","$I$38","","5_A_EF_LY_X_X_SG_N_V_B_A","Immidiate_borrower_basis","$I$38"]
["Immidiate_borrower_basis","$J$38","","5_A_EF_LZ_X_X_SG_N_V_B_A","Immidiate_borrower_basis","$J$38"]
["Immidiate_borrower_basis","$K$38","","5_A_EF_X_X_X_SG_N12111_V_B_A","Immidiate_borrower_basis","$K$38"]
["Immidiate_borrower_basis","$L$38","","5_A_EF_X_X_X_SG_NXU_V_B_A","Immidiate_borrower_basis","$L$38"]
["Immidiate_borrower_basis","$M$38","","5_A_EF_X_X_X_SG_N122_V_B_A","Immidiate_borrower_basis","$M$38"]
["Immidiate_borrower_basis","$N$38","","5_A_EF_X_X_X_SG_N11_V_B_A","Immidiate_borrower_basis","$N$38"]
["Immidiate_borrower_basis","$O$38","","5_A_EF_X_X_X_SG_N3_V_B_A","Immidiate_borrower_basis","$O$38"]
["Immidiate_borrower_basis","$P$38","","5_A_EF_X_X_X_SG_N9_V_B_A","Immidiate_borrower_basis","$P$38"]
["Immidiate_borrower_basis","$F$39",0,"5_A_EF_X_X_X_ES_N_V_B_A","Immidiate_borrower_basis","$F$39"]
["Immidiate_borrower_basis","$G$39","","5_A_EF_LR_X_X_ES_N_V_B_A","Immidiate_borrower_basis","$G$39"]
["Immidiate_borrower_basis","$H$39",{"$f":"IF(ISBLANK(INDIRECT(CONCATENATE(\"'\",A257,\"'\",\"!\",B257))),\"\",(INDIRECT(CONCATENATE(\"'\",A257,\"'\",\"!\",B257))))","v":""},"5_A_EF_LS_X_X_ES_N_V_B_A","Immidiate_borrower_basis","$H$39"]
["Immidiate_borrower_basis","$I$39","","5_A_EF_LY_X_X_ES_N_V_B_A","Immidiate_borrower_basis","$I$39"]
["Immidiate_borrower_basis","$J$39","","5_A_EF_LZ_X_X_ES_N_V_B_A","Immidiate_borrower_basis","$J$39"]
["Immidiate_borrower_basis","$K$39","","5_A_EF_X_X_X_ES_N12111_V_B_A","Immidiate_borrower_basis","$K$39"]
["Immidiate_borrower_basis","$L$39","","5_A_EF_X_X_X_ES_NXU_V_B_A","Immidiate_borrower_basis","$L$39"]
["Immidiate_borrower_basis","$M$39","","5_A_EF_X_X_X_ES_N122_V_B_A","Immidiate_borrower_basis","$M$39"]
["Immidiate_borrower_basis","$N$39","","5_A_EF_X_X_X_ES_N11_V_B_A","Immidiate_borrower_basis","$N$39"]
["Immidiate_borrower_basis","$O$39","","5_A_EF_X_X_X_ES_N3_V_B_A","Immidiate_borrower_basis","$O$39"]
["Immidiate_borrower_basis","$P$39","","5_A_EF_X_X_X_ES_N9_V_B_A","Immidiate_borrower_basis","$P$39"]
["Immidiate_borrower_basis","$F$40",0,"5_A_EF_X_X_X_1E_N_V_B_A2","Immidiate_borrower_basis","$F$40"]
["Immidiate_borrower_basis","$G$40","","5_A_EF_LR_X_X_1E_N_V_B_A2","Immidiate_borrower_basis","$G$40"]
["Immidiate_borrower_basis","$H$40","","5_A_EF_LS_X_X_1E_N_V_B_A2","Immidiate_borrower_basis","$H$40"]
["Immidiate_borrower_basis","$I$40","","5_A_EF_LY_X_X_1E_N_V_B_A2","Immidiate_borrower_basis","$I$40"]
["Immidiate_borrower_basis","$J$40","","5_A_EF_LZ_X_X_1E_N_V_B_A2","Immidiate_borrower_basis","$J$40"]
["Immidiate_borrower_basis","$K$40","","5_A_EF_X_X_X_1E_N12111_V_B_A2","Immidiate_borrower_basis","$K$40"]
["Immidiate_borrower_basis","$L$40","","5_A_EF_X_X_X_1E_NXU_V_B_A2","Immidiate_borrower_basis","$L$40"]
["Immidiate_borrower_basis","$M$40","","5_A_EF_X_X_X_1E_N122_V_B_A2","Immidiate_borrower_basis","$M$40"]
["Immidiate_borrower_basis","$N$40","","5_A_EF_X_X_X_1E_N11_V_B_A2","Immidiate_borrower_basis","$N$40"]
["Immidiate_borrower_basis","$O$40","","5_A_EF_X_X_X_1E_N3_V_B_A2","Immidiate_borrower_basis","$O$40"]
["Immidiate_borrower_basis","$P$40","","5_A_EF_X_X_X_1E_N9_V_B_A2","Immidiate_borrower_basis","$P$40"]
["Immidiate_borrower_basis","$F$41",0,"5_A_EF_X_X_X_CH_N_V_B_A","Immidiate_borrower_basis","$F$41"]
["Immidiate_borrower_basis","$G$41","","5_A_EF_LR_X_X_CH_N_V_B_A","Immidiate_borrower_basis","$G$41"]
["Immidiate_borrower_basis","$H$41","","5_A_EF_LS_X_X_CH_N_V_B_A","Immidiate_borrower_basis","$H$41"]
["Immidiate_borrower_basis","$I$41","","5_A_EF_LY_X_X_CH_N_V_B_A","Immidiate_borrower_basis","$I$41"]
["Immidiate_borrower_basis","$J$41","","5_A_EF_LZ_X_X_CH_N_V_B_A","Immidiate_borrower_basis","$J$41"]
["Immidiate_borrower_basis","$K$41","","5_A_EF_X_X_X_CH_N12111_V_B_A","Immidiate_borrower_basis","$K$41"]
["Immidiate_borrower_basis","$L$41","","5_A_EF_X_X_X_CH_NXU_V_B_A","Immidiate_borrower_basis","$L$41"]
["Immidiate_borrower_basis","$M$41","","5_A_EF_X_X_X_CH_N122_V_B_A","Immidiate_borrower_basis","$M$41"]
["Immidiate_borrower_basis","$N$41","","5_A_EF_X_X_X_CH_N11_V_B_A","Immidiate_borrower_basis","$N$41"]
["Immidiate_borrower_basis","$O$41","","5_A_EF_X_X_X_CH_N3_V_B_A","Immidiate_borrower_basis","$O$41"]
["Immidiate_borrower_basis","$P$41","","5_A_EF_X_X_X_CH_N9_V_B_A","Immidiate_borrower_basis","$P$41"]
["Immidiate_borrower_basis","$F$42",0,"5_A_EF_X_X_X_TW_N_V_B_A","Immidiate_borrower_basis","$F$42"]
["Immidiate_borrower_basis","$G$42","","5_A_EF_LR_X_X_TW_N_V_B_A","Immidiate_borrower_basis","$G$42"]
["Immidiate_borrower_basis","$H$42","","5_A_EF_LS_X_X_TW_N_V_B_A","Immidiate_borrower_basis","$H$42"]
["Immidiate_borrower_basis","$I$42","","5_A_EF_LY_X_X_TW_N_V_B_A","Immidiate_borrower_basis","$I$42"]
["Immidiate_borrower_basis","$J$42","","5_A_EF_LZ_X_X_TW_N_V_B_A","Immidiate_borrower_basis","$J$42"]
["Immidiate_borrower_basis","$K$42","","5_A_EF_X_X_X_TW_N12111_V_B_A","Immidiate_borrower_basis","$K$42"]
["Immidiate_borrower_basis","$L$42","","5_A_EF_X_X_X_TW_NXU_V_B_A","Immidiate_borrower_basis","$L$42"]
["Immidiate_borrower_basis","$M$42","","5_A_EF_X_X_X_TW_N122_V_B_A","Immidiate_borrower_basis","$M$42"]
["Immidiate_borrower_basis","$N$42","","5_A_EF_X_X_X_TW_N11_V_B_A","Immidiate_borrower_basis","$N$42"]
["Immidiate_borrower_basis","$O$42","","5_A_EF_X_X_X_TW_N3_V_B_A","Immidiate_borrower_basis","$O$42"]
["Immidiate_borrower_basis","$P$42","","5_A_EF_X_X_X_TW_N9_V_B_A","Immidiate_borrower_basis","$P$42"]
["Immidiate_borrower_basis","$F$43",0,"5_A_EF_X_X_X_TR_N_V_B_A","Immidiate_borrower_basis","$F$43"]
["Immidiate_borrower_basis","$G$43","","5_A_EF_LR_X_X_TR_N_V_B_A","Immidiate_borrower_basis","$G$43"]
["Immidiate_borrower_basis","$H$43","","5_A_EF_LS_X_X_TR_N_V_B_A","Immidiate_borrower_basis","$H$43"]
["Immidiate_borrower_basis","$I$43","","5_A_EF_LY_X_X_TR_N_V_B_A","Immidiate_borrower_basis","$I$43"]
["Immidiate_borrower_basis","$J$43","","5_A_EF_LZ_X_X_TR_N_V_B_A","Immidiate_borrower_basis","$J$43"]
["Immidiate_borrower_basis","$K$43","","5_A_EF_X_X_X_TR_N12111_V_B_A","Immidiate_borrower_basis","$K$43"]
["Immidiate_borrower_basis","$L$43","","5_A_EF_X_X_X_TR_NXU_V_B_A","Immidiate_borrower_basis","$L$43"]
["Immidiate_borrower_basis","$M$43","","5_A_EF_X_X_X_TR_N122_V_B_A","Immidiate_borrower_basis","$M$43"]
["Immidiate_borrower_basis","$N$43","","5_A_EF_X_X_X_TR_N11_V_B_A","Immidiate_borrower_basis","$N$43"]
["Immidiate_borrower_basis","$O$43","","5_A_EF_X_X_X_TR_N3_V_B_A","Immidiate_borrower_basis","$O$43"]
["Immidiate_borrower_basis","$P$43","","5_A_EF_X_X_X_TR_N9_V_B_A","Immidiate_borrower_basis","$P$43"]
["Immidiate_borrower_basis","$F$44",0,"5_A_EF_X_X_X_U1_N_V_B_A","Immidiate_borrower_basis","$F$44"]
["Immidiate_borrower_basis","$G$44","","5_A_EF_LR_X_X_U1_N_V_B_A","Immidiate_borrower_basis","$G$44"]
["Immidiate_borrower_basis","$H$44","","5_A_EF_LS_X_X_U1_N_V_B_A","Immidiate_borrower_basis","$H$44"]
["Immidiate_borrower_basis","$I$44","","5_A_EF_LY_X_X_U1_N_V_B_A","Immidiate_borrower_basis","$I$44"]
["Immidiate_borrower_basis","$J$44","","5_A_EF_LZ_X_X_U1_N_V_B_A","Immidiate_borrower_basis","$J$44"]
["Immidiate_borrower_basis","$K$44","","5_A_EF_X_X_X_U1_N12111_V_B_A","Immidiate_borrower_basis","$K$44"]
["Immidiate_borrower_basis","$L$44","","5_A_EF_X_X_X_U1_NXU_V_B_A","Immidiate_borrower_basis","$L$44"]
["Immidiate_borrower_basis","$M$44","","5_A_EF_X_X_X_U1_N122_V_B_A","Immidiate_borrower_basis","$M$44"]
["Immidiate_borrower_basis","$N$44","","5_A_EF_X_X_X_U1_N11_V_B_A","Immidiate_borrower_basis","$N$44"]
["Immidiate_borrower_basis","$O$44","","5_A_EF_X_X_X_U1_N3_V_B_A","Immidiate_borrower_basis","$O$44"]
["Immidiate_borrower_basis","$P$44","","5_A_EF_X_X_X_U1_N9_V_B_A","Immidiate_borrower_basis","$P$44"]
["Immidiate_borrower_basis","$F$45",{"$f":"IF(ISBLANK(INDIRECT(CONCATENATE(\"'\",A321,\"'\",\"!\",B321))),\"\",(INDIRECT(CONCATENATE(\"'\",A321,\"'\",\"!\",B321))))","v":0},"5_A_EF_X_X_X_US_N_V_B_A","Immidiate_borrower_basis","$F$45"]
["Immidiate_borrower_basis","$G$45","","5_A_EF_LR_X_X_US_N_V_B_A","Immidiate_borrower_basis","$G$45"]
["Immidiate_borrower_basis","$H$45","","5_A_EF_LS_X_X_US_N_V_B_A","Immidiate_borrower_basis","$H$45"]
["Immidiate_borrower_basis","$I$45","","5_A_EF_LY_X_X_US_N_V_B_A","Immidiate_borrower_basis","$I$45"]
["Immidiate_borrower_basis","$J$45","","5_A_EF_LZ_X_X_US_N_V_B_A","Immidiate_borrower_basis","$J$45"]
["Immidiate_borrower_basis","$K$45","","5_A_EF_X_X_X_US_N12111_V_B_A","Immidiate_borrower_basis","$K$45"]
["Immidiate_borrower_basis","$L$45","","5_A_EF_X_X_X_US_NXU_V_B_A","Immidiate_borrower_basis","$L$45"]
["Immidiate_borrower_basis","$M$45","","5_A_EF_X_X_X_US_N122_V_B_A","Immidiate_borrower_basis","$M$45"]
["Immidiate_borrower_basis","$N$45","","5_A_EF_X_X_X_US_N11_V_B_A","Immidiate_borrower_basis","$N$45"]
["Immidiate_borrower_basis","$O$45","","5_A_EF_X_X_X_US_N3_V_B_A","Immidiate_borrower_basis","$O$45"]
["Immidiate_borrower_basis","$P$45","","5_A_EF_X_X_X_US_N9_V_B_A","Immidiate_borrower_basis","$P$45"]

{"sheet":"Start","index":2,"n_rows":21,"n_cols":8,"rows_kept":21,"cut":false,"hidden":false,"merged":[[15,4,16,4],[2,6,2,8],[5,6,5,8],[6,6,6,8],[7,6,7,7],[8,6,8,8],[9,6,9,8]]}
[]
[]
[null,null,"Blankettmall version 1.01",null,null,null,"BLANKETT : RUTS konsoliderad BIS hemland"]
[null,null,null,null,null,null,"Version 7, 2013-12-31 ->"]
[]
[null,null,null,null,"(Load text file to template)",null,"Blanketten ska vara Statistiska centralbyrån tillhanda senast den sista bankdagen i månaden efter kvartalsskifte."]
[null,null,null,null,null,null,"The template is to be provided to Statistics Sweden (SCB) at the latest by the last banking day of the month after the end of the quarter."]
[null,null,null,null,"(Create text file from template)"]
[null,null,null,null,null,null,"Blanketten lämnas in via adressen www.insamling.scb.se där ni loggar in med ert användarnamn och lösenord."]
[null,null,null,null,null,null,"The template is submitted via Statistics Sweden web portal at the address www.insamling.scb.se where you log in with your username and password."]
[null,null,null,null,"(Aggregrate templates)"]
[]
[null,null,null,null,null,null,"Summeringskontroller (Consistency checks)","Antal fel (Errors)"]
[null,null,null,null,"(Load XML-file to template)",null,"Immidiate borrower basis",{"$f":"SUM(Immidiate_borrower_basis!T49:U49)","v":0}]
[]
[null,null,null,null,"(Create XML-file from template)"]
[]
[null,null,null,null,null,null,"Kommentar (Comments)"]
[null,null,null,null,"(Repair consistency checks)"]
[]
[null,"7.1"]

{"sheet":"Frontpaper","index":3,"n_rows":24,"n_cols":7,"rows_kept":24,"cut":false,"hidden":false,"merged":[[7,5,7,6],[9,1,9,3],[11,1,11,3],[19,1,19,3],[3,1,3,3],[4,1,4,3],[5,1,5,3],[7,1,7,2]]}
[null,"FM5001"]
[]
[null,"Institutets namn och adress",null,null,null,"BIS-STATISTIK - KONSOLIDERAD"]
[]
[]
[null,null,null,null,null,"Kvartal och år"]
[null,"Organisationsnummer",null,"Institutnummer"]
[]
[null,"Handläggarens namn (Texta)"]
[null,null,null,null,null,"Rapporten ska ha kommit till Statistiska centralbyrån "]
[null,"Telefonnummer (även riktnr)",null,null,null,"senast den sista bankdagen i månaden efter"]
[null,null,null,null,null,"respektive kvartals slut"]
[]
[null,null,null,null,null,"*","Om rapportering ej kan ske elektroniskt, ska"]
[null,"Uppgifterna samlas in med stöd av 6 kap. 9 § lagen",null,null,null,null,"blanketten sändas i ett exemplar till"]
[null,"(1988:1385) om Sveriges riksbank"]
[null,null,null,null,null,null,"Statistiska centralbyrån"]
[null,null,null,null,null,null,"ES/BFM - FMR"]
[null,null,null,null,null,null,"Box 24300"]
[null,null,null,null,null,null,"104 51 STOCKHOLM"]
[]
[]
[null,null,null,null,null,"Uppgifterna kommer att lämnas till "]
[null,null,null,null,null,"Sveriges riksbank."]

{"sheet":"Instructions","index":4,"n_rows":25,"n_cols":7,"rows_kept":25,"cut":false,"hidden":false,"merged":[]}
[]
[]
[]
[null,null,null,"Länkar till instruktioner",null,null,"Links to instructions"]
[]
[null,null,null,"Här nedan finner ni snabblänkar till olika avsnitt i instruktionerna på SCB:s",null,null,"Here below you will find quick-links to instructions on Statisctics Swedens website"]
[null,null,null,"uppgiftslämnarhemsida (http://www.scb.se/ruts). Internetuppkoppling krävs för att få",null,null,"(http://www.scb.se/ruts). Internet connection is required to access the instructions. Please click"]
[null,null,null,"tillgång till instruktionerna. Klicka på de blåfärgade länkarna nedan.",null,null," on the blue colored links below."]
[]
[null,null,null,"Generella instruktioner",null,null,"General instructions"]
[null,null,null,"Blanketten",null,null,"The reporting template"]
[null,null,null,"Mellanhavanden \"Vilka uppgifter ska rapporteras samt hantering av mellanhavanden\"",null,null,"Interoffice claims/liabilities \"Which items should be inlcuded and handling of interoffice business\""]
[]
[null,null,null,"Totala fordringar",null,null,"Total claims"]
[null,null,null,"Löptid",null,null,"Maturity"]
[]
[null,null,null,"Sektorfördelning",null,null,"Sectoral breakdown"]
[null,null,null,"MFI/bank\n",null,null,"MFI/banks"]
[null,null,null,"Offentlig sektor inklusive centralbanker och internationella organisationer",null,null,"General government including central banks and international organisations"]
[null,null,null,"Finansiella företag, ej MFI/Bank",null,null,"Non-bank financial institutions"]
[null,null,null,"Icke-finansiella företag",null,null,"Non-finansial corporations"]
[null,null,null,"Hushåll inklusive HIO",null,null,"Households including NPISH"]
[null,null,null,"Ofördelat",null,null,"Unallocated  sector"]
[]
[null,null,null,"Värdering",null,null,"Valuation"]

{"sheet":"Immidiate_borrower_basis","index":5,"n_rows":49,"n_cols":22,"rows_kept":49,"cut":false,"hidden":false,"merged":[[5,5,5,15],[5,19,5,20],[6,5,13,5],[6,6,7,9],[6,10,7,15],[6,19,13,19],[6,20,13,20],[8,6,13,6],[8,7,13,7],[8,8,13,8],[8,15,13,15],[14,2,14,3],[46,19,47,20],[8,9,13,9],[8,10,13,10],[8,11,13,11],[8,12,13,12],[8,13,13,13],[8,14,13,14]]}
[]
[]
[null,null,"Foreign-owned branches and subsidiaries in Sweden unconsolidated claims on the home country    (Utlandsägda filialer och döttrar i Sverige ej konsoliderade fordringar på hemlandet)"]
[]
[null,null,"Amounts in SEK, thousands (Belopp i tusental kronor)"]
[null,null,null,null,null,"Unconsolidated claims on the home country, incl. interoffice positions, in all currencies\n(Fordringar på hemlandet, inkl. mellanhavanden, i samtliga valutor)",null,null,null,null,null,null,null,null,null,null,null,null,null,"Consistency checks \n(Summeringskontroller)"]
[null,null,null,null,null,"Total","Maturities 4\n(Återstående löptid)",null,null,null,"Sectors\n(Sektorer)",null,null,null,null,null,null,null,null,"Check 4000\n=4030+4031\n+4032+4033","Check 4000\n=4035+4036\n+4041+4042\n+4043+4038"]
[]
[null,null,null,"Inside area countries",null,null,"Up to\none year\n<= 1 år","Over one year\nand less than\ntwo years\n> 1 år <= 2 år","Over two\nyears\n> 2 år","Unallocated\n(Ofördelade)","MFI/banks\n(MFI/bank)","Central banks and general government \n(Offentlig sektor inkl. centralbanker)","Non-bank financial institutions \n(Finansiella företag, ej MFI/Bank)","Non-financial corporations\n(Icke-finansiella företag)","Households including NPISH\n(Hushåll inkl. HIO)","Unallocated\n(Ofördelade)"]
[null,null,null,null,"ISO"]
[null,null,null,null,"CODE",null,null,null,null,null,null,null,"Non-bank financial insttutions \n(Andra finansiella institut än banker)"]
[null,null,null,null,null,null,null,null,null,null,null,null,null,"Non-financial corporations\n(Icke-finansiella företag)","Households including NPISH\n(Hushåll inkl. HIO)"]
[]
[]
[null,null,null,null,null,4000,4030,4031,4032,4033,4035,4036,4041,4042,4043,4038,null,null,null,"Chk 4000A","Chk 4000B"]
[null,null,null,"Australia","AU",{"$f":"SUM(G16:J16)","v":0},null,null,null,null,null,null,null,null,null,null,null,null,null,{"$f":"IF(ABS(F16-(SUM(G16:J16)))<=2,\"OK\",\"Error\")","v":"OK"},{"$f":"IF(ABS(F16-(SUM(K16:P16)))<=2,\"OK\",\"Error\")","v":"OK"}]
[null,null,null,"Austria","AT",{"$f":"SUM(G17:J17)","v":0},null,null,null,null,null,null,null,null,null,null,null,null,null,{"$f":"IF(ABS(F17-(SUM(G17:J17)))<=2,\"OK\",\"Error\")","v":"OK"},{"$f":"IF(ABS(F17-(SUM(K17:P17)))<=2,\"OK\",\"Error\")","v":"OK"}]
[null,null,null,"Belgium","BE",0,null,null,null,null,null,null,null,null,null,null,null,null,null,"OK","OK"]
[null,null,null,"Brazil","BR",0,null,null,null,null,null,null,null,null,null,null,null,null,null,"OK","OK"]
[null,null,null,"Canada","CA",0,null,null,null,null,null,null,null,null,null,null,null,null,null,"OK","OK"]
[null,null,null,"Chile","CL",0,null,null,null,null,null,null,null,null,null,null,null,null,null,"OK","OK"]
[null,null,null,"Denmark","DK",0,null,null,null,null,null,null,null,null,null,null,null,null,null,"OK","OK"]
[null,null,null,"Finland","FI",0,null,null,null,null,null,null,null,null,null,null,null,null,null,"OK","OK"]
[null,null,null,"France","FR",0,null,null,null,null,null,null,null,null,null,null,null,null,null,"OK","OK"]
[null,null,null,"Germany 1","DE",{"$f":"SUM(G25:J25)","v":0},null,null,null,null,null,null,null,null,null,null,null,null,null,"OK","OK"]
[null,null,null,"Greece","GR",0,null,null,null,null,null,null,null,null,null,null,null,null,null,"OK","OK"]
[null,null,null,"Hong Kong SAR","HK",0,null,null,null,null,null,null,null,null,null,null,null,null,null,"OK","OK"]
[null,null,null,"India","IN  ",0,null,null,null,null,null,null,null,null,null,null,null,null,null,"OK","OK"]
[null,null,null,"Ireland","IE",0,null,null,null,null,null,null,null,null,null,null,null,null,null,"OK","OK"]
[null,null,null,"Italy","IT",{"$f":"SUM(G30:J30)","v":0},null,null,null,null,null,null,null,null,null,null,null,null,null,"OK","OK"]
[null,null,null,"Japan","JP",0,null,null,null,null,null,null,null,null,null,null,null,null,null,"OK","OK"]
[null,null,null,"Luxembourg","LU",0,null,null,null,null,null,null,null,null,null,null,null,null,null,"OK","OK"]
[null,null,null,"Mexico","MX",0,null,null,null,null,null,null,null,null,null,null,null,null,null,"OK","OK"]
[null,null,null,"Netherlands","NL",0,null,null,null,null,null,null,null,null,null,null,null,null,null,"OK","OK"]
[null,null,null,"Norway","NO",0,null,null,null,null,null,null,null,null,null,null,null,null,null,"OK","OK"]
[null,null,null,"Panama","PA",0,null,null,null,null,null,null,null,null,null,null,null,null,null,"OK","OK"]
[null,null,null,"Portugal ","PT",0,null,null,null,null,null,null,null,null,null,null,null,null,null,"OK","OK"]
[null,null,null,"Singapore","SG ",0,null,null,null,null,null,null,null,null,null,null,null,null,null,"OK","OK"]
[null,null,null,"Spain","ES",{"$f":"SUM(G39:J39)","v":0},null,null,null,null,null,null,null,null,null,null,null,null,null,"OK","OK"]
[null,null,null,"Sweden","SE",0,null,null,null,null,null,null,null,null,null,null,null,null,null,"OK","OK"]
[null,null,null,"Switzerland 2","CH",0,null,null,null,null,null,null,null,null,null,null,null,null,null,"OK","OK"]
[null,null,null,"Taiwan, China","TW",0,null,null,null,null,null,null,null,null,null,null,null,null,null,"OK","OK"]
[null,null,null,"Turkey","TR",0,null,null,null,null,null,null,null,null,null,null,null,null,null,"OK","OK"]
[null,null,null,"United Kingdom","GB",0,null,null,null,null,null,null,null,null,null,null,null,null,null,"OK","OK"]
[null,null,null,"United States","US",0,null,null,null,null,null,null,null,null,null,null,null,null,null,"OK","OK"]
[]
[null,null,null,"1 Including the European Central Bank (ECB), Official sector. (Inklusive Europeiska Centralbanken (ECB) , Offentlig sektor)",null,null,null,null,null,null,null,null,null,null,null,null,null,null,null,"Consistency errors (Antal summeringsfel)"]
[null,null,null,"2 Including the Bank for International Settlements (BIS) , Official sector. (Inklusive Bank For International Settlements (BIS) , Offentlig sektor)",null,null,null,null,null,null,null,null,null,null,null,null,null,null,null,null,null,{"$f":"COUNTIF(V16:V45,\"Error\")","v":0}]
[null,null,null,"4 Maturities are defined as the period to maturity for the relevant claim. (Återstående löptid definieras som tiden till förfall för den relevanta fordran)",null,null,null,null,null,null,null,null,null,null,null,null,null,null,null,{"$f":"COUNTIF(T16:T45,\"Error\")","v":0},{"$f":"COUNTIF(U16:U45,\"Error\")","v":0}]

{"sheet":"Country_Information","index":6,"n_rows":221,"n_cols":4,"rows_kept":221,"cut":false,"hidden":false,"merged":[]}
[]
[null,"Countries in alphabetic order","ISO\nCode","Comments to what is included, excluded, etc."]
[null,"Afghanistan","AF"]
[null,"Albania","AL"]
[null,"Algeria ","DZ"]
[null,"Andorra","AD"]
[null,"Angola","AO"]
[null,"Argentina","AR "]
[null,"Armenia","AM","As from 1993 Q4"]
[null,"Aruba","AW"]
[null,"Australia","AU","Including Christmas Islands, Cocos Islands, Norfolk Islands, Heard and McDonald Islands, Territory of Ashmore and Cartier Islands and Territory of Coral Sea Islands"]
[null,"Austria","AT"]
[null,"Azerbaijan","AZ","As from 1993 Q4"]
[null,"Bahamas","BS"]
[null,"Bahrain","BH"]
[null,"Bangladesh","BD"]
[null,"Barbados","BB"]
[null,"Belarus","BY","As from 1993 Q4"]
[null,"Belgium","BE"]
[null,"Belize","BZ "]
[null,"Benin","BJ"]
[null,"Bermuda","BM"]
[null,"Bhutan","BT"]
[null,"Bolivia","BO"]
[null,"Bonaire, Sint Eustatius and Saba","BQ","As from 2010 Q4"]
[null,"Bosnia and Herzegovina","BA  ","As from 1993 Q4 "]
[null,"Botswana","BW"]
[null,"Brazil","BR"]
[null,"British Overseas Territories","1W *","Including British Antarctic Territory, British Indian Ocean Territory, Chagos, Pitcairn Islands, South Georgia and South Sandwich Islands"]
[null,"Brunei  ","BN  "]
[null,"Bulgaria","BG"]
[null,"Burkina Faso","BF"]
[null,"Burundi","BI"]
[null,"Cambodia","KH  "]
[null,"Cameroon","CM"]
[null,"Canada","CA"]
[null,"Cape Verde","CV"]
[null,"Cayman Islands","KY"]
[null,"Central African Republic","CF"]
[null,"Chad","TD"]
[null,"Chile","CL"]
[null,"China","CN  "]
[null,"Colombia","CO"]
[null,"Comoros","KM"]
[null,"Congo","CG"]
[null,"Congo Democratic Republic ","CD","Formerly Zaire"]
[null,"Costa Rica","CR"]
[null,"Côte d'Ivoire","CI"]
[null,"Croatia","HR  ","As from 1993 Q4"]
[null,"Cuba","CU"]
[null,"Curacao","CW","As from 2010 Q4"]
[null,"Cyprus","CY"]
[null,"Czech Republic","CZ","As from 1993 Q4"]
[null,"Denmark","DK","Excluding Faeroe Islands and Greenland"]
[null,"Djibouti","DJ"]
[null,"Dominica","DM"]
[null,"Dominican Republic","DO"]
[null,"Ecuador  ","EC"]
[null,"Egypt","EG "]
[null,"El Salvador","SV"]
[null,"Equatorial Guinea","GQ"]
[null,"Eritrea","ER","As from 1993 Q3"]
[null,"Estonia","EE","As from 1993 Q4"]
[null,"Ethiopia","ET"]
[null,"Faeroe Islands","FO"]
[null,"Falkland Islands","FK "]
[null,"Fiji","FJ  "]
[null,"Finland","FI","Including Aland islands"]
[null,"France","FR","Including French Guiana, French Southern Territories, Guadeloupe, Martinique, Mayotte, Monaco, Reunion and St. Pierre and Miquelon"]
[null,"French Polynesia","PF  ","Including Society Archipelago, Tuamotu-Gambier Islands, Marquesas and Australes Archipelago"]
[null,"Gabon ","GA"]
[null,"Gambia","GM"]
[null,"Georgia","GE","As from 1993 Q4"]
[null,"Germany","DE","Including the European Central Bank"]
[null,"Ghana","GH "]
[null,"Gibraltar","GI"]
[null,"Greece","GR"]
[null,"Greenland","GL"]
[null,"Grenada","GD "]
[null,"Guatemala","GT "]
[null,"Guernsey","GG","As from 2001 Q4"]
[null,"Guinea","GN "]
[null,"Guinea-Bissau","GW "]
[null,"Guyana","GY "]
[null,"Haiti","HT "]
[null,"Honduras","HN"]
[null,"Hong Kong SAR","HK"]
[null,"Hungary","HU"]
[null,"Iceland","IS"]
[null,"India","IN  "]
[null,"Indonesia","ID  "]
[null,"International organisations","1C *","International organisations (except the BIS: which is included under Switzerland, the ECB: which is included under Germany, and the International Bank for Economic Cooperation-IBEC: which is included under residual Europé)"]
[null,"Iran  ","IR "]
[null,"Iraq  ","IQ "]
[null,"Ireland","IE"]
[null,"Isle of Man","IM","As from 2001 Q4"]
[null,"Israel","IL "]
[null,"Italy","IT"]
[null,"Jamaica","JM"]
[null,"Japan","JP"]
[null,"Jersey","JE","As from 2001 Q4"]
[null,"Jordan","JO "]
[null,"Kazakhstan","KZ  ","As from 1993 Q4"]
[null,"Kenya","KE "]
[null,"Kiribati","KI  ","Including Canton and Enderbury, Gilbert Island, Phoenix Islands and Line Islands"]
[null,"Kuwait ","KW"]
[null,"Kyrgyz Republic","KG  ","As from 1993 Q4"]
[null,"Laos","LA  "]
[null,"Latvia","LV","As from 1993 Q4"]
[null,"Lebanon","LB"]
[null,"Lesotho","LS "]
[null,"Liberia","LR"]
[null,"Libya  ","LY"]
[null,"Liechtenstein","LI"]
[null,"Lithuania","LT","As from 1993 Q4"]
[null,"Luxembourg","LU"]
[null,"Macao SAR","MO"]
[null,"Macedonia","MK  ","(The former Yugoslav Republic of -), as from 1993 Q4"]
[null,"Madagascar","MG "]
[null,"Malawi","MW "]
[null,"Malaysia","MY  ","Including Labuan International Offshore Financial Centre"]
[null,"Maldives","MV  "]
[null,"Mali","ML "]
[null,"Malta","MT"]
[null,"Marshall Islands","MH"]
[null,"Mauritania","MR "]
[null,"Mauritius","MU"]
[null,"Mexico","MX"]
[null,"Micronesia","FM"]
[null,"Moldova","MD","As from 1993 Q4"]
[null,"Mongolia","MN  "]
[null,"Montenegro","ME","As from 2006 Q4"]
[null,"Morocco","MA "]
[null,"Mozambique","MZ "]
[null,"Myanmar","MM"]
[null,"Namibia","NA "]
[null,"Nauru","NR"]
[null,"Nepal","NP"]
[null,"Netherlands","NL"]
[null,"New Caledonia","NC  "]
[null,"New Zealand","NZ","Including Cook Islands, Minor Islands, Niue, Ross Dependency and Tokelau"]
[null,"Nicaragua","NI"]
[null,"Niger","NE "]
[null,"Nigeria  ","NG "]
[null,"North Korea","KP"]
[null,"Norway","NO","Including Bouvet Islands, Svalbard and Jan Mayen Islands"]
[null,"Oman  ","OM"]
[null,"Pakistan","PK  "]
[null,"Palau","PW"]
[null,"Palestinian Territory","PS"]
[null,"Panama","PA","Including Panama Canal Zone"]
[null,"Papua New Guinea","PG  "]
[null,"Paraguay","PY"]
[null,"Peru","PE"]
[null,"Philippines","PH  "]
[null,"Poland","PL"]
[null,"Portugal ","PT","Including the Azores and Madeira"]
[null,"Qatar ","QA"]
[null,"Romania","RO"]
[null,"Russia","RU","As from 1993 Q4"]
[null,"Rwanda","RW "]
[null,"Samoa","WS","Formerly Western Samoa"]
[null,"San Marino","SM"]
[null,"Sao Tome and Principe","ST "]
[null,"Saudi Arabia ","SA"]
[null,"Senegal","SN "]
[null,"Serbia","RS","As from 2006 Q4"]
[null,"Seychelles","SC "]
[null,"Sierra Leone","SL  "]
[null,"Singapore","SG "]
[null,"Sint  Maarten","SX","As from 2010 Q4"]
[null,"Slovakia","SK","As from 1993 Q4"]
[null,"Slovenia","SI  ","As from 1993 Q4"]
[null,"Solomon Islands","SB"]
[null,"Somalia","SO  "]
[null,"South Africa ","ZA  "]
[null,"South Korea","KR"]
[null,"South Sudan","SS","As from 2011 Q3"]
[null,"Spain","ES","Including Balearic Islands, Canary Islands and Ceuta and Melilla"]
[null,"Sri Lanka","LK"]
[null,"St. Helena and Dependencies","SH  ","Dependencies include Ascension, Gough and Tristan Da Cunha"]
[null,"St. Lucia","LC"]
[null,"St. Vincent and the Grenadines","VC"]
[null,"Sudan","SD  "]
[null,"Suriname","SR"]
[null,"Swaziland","SZ  "]
[null,"Sweden","SE"]
[null,"Switzerland","CH","Including the Bank for International Settlements"]
[null,"Syria","SY"]
[null,"Taiwan, China","TW"]
[null,"Tajikistan","TJ","As from 1993 Q4"]
[null,"Tanzania","TZ  "]
[null,"Thailand","TH"]
[null,"Timor Leste","TL","As from 2003 Q4"]
[null,"Togo","TG  "]
[null,"Tonga","TO"]
[null,"Trinidad and Tobago","TT"]
[null,"Tunisia","TN  "]
[null,"Turkey","TR"]
[null,"Turkmenistan","TM","As from 1993 Q4"]
[null,"Turks and Caicos Islands","TC"]
[null,"Tuvalu","TV","Formerly the Ellice Islands"]
[null,"Uganda","UG  "]
[null,"Ukraine","UA","As from 1993 Q4"]
[null,"United Arab Emirates  ","AE"]
[null,"United Kingdom","GB","Excluding Guernsey, Isle of Man and Jersey as from 2001 Q4"]
[null,"United States","US","Including American Samoa, Guam, Midway Islands, Northern Mariana Islands, Puerto Rico, US Virgin Islands and Wake Islands"]
[null,"Uruguay","UY"]
[null,"US Pacific Islands","PU","Including Carolines, Howland and Baker, Kingman Reef, Palmyra, Jarvis and Johnston"]
[null,"Uzbekistan","UZ","As from 1993 Q4"]
[null,"Wallis and Futuna","WF"]
[null,"Vanuatu","VU"]
[null,"Vatican City State","VA"]
[null,"Venezuela  ","VE"]
[null,"West Indies UK","1Z *","Including Anguilla, Antigua and Barbuda, British Virgin Islands, Montserrat and St. Christopher/St. Kitts - Nevis"]
[null,"Vietnam","VN"]
[null,"Yemen","YE"]
[null,"Zambia","ZM  "]
[null,"Zimbabwe","ZW  "]
[]
[null,null,"* Code specified by the BIS. Otherwise, codes follow ISO guidelines."]

{"sheet":"Summary","index":7,"n_rows":332,"n_cols":13,"rows_kept":332,"cut":false,"hidden":false,"merged":[]}
[null,null,"Var.Värde","Variabelkod","Spec","Kolumn","Rad","Kontoslag","Löptid","Säkrehet","Land","Motpart","Valuta"]
["Start","$G$19",{"$f":"IF(ISBLANK(INDIRECT(CONCATENATE(\"'\",A2,\"'\",\"!\",B2))),\"\",(INDIRECT(CONCATENATE(\"'\",A2,\"'\",\"!\",B2))))","v":""},"7_X_X_X_X_X_X_X_X_X_T3","Start","G",19,"Ej specificerat","Ej specificerad","Ej specificerad","Ospecificerat","Ej specificerad","Ospecificerat"]
["Immidiate_borrower_basis","$F$16",0,"5_A_EF_X_X_X_AU_N_V_B_A","Immidiate_borrower_basis","F",16,"Tillgång","Ej specificerad","Ej specificerad","Australia","(S1) Nationell ekonomi, totalt","V"]
["Immidiate_borrower_basis","$G$16","","5_A_EF_LR_X_X_AU_N_V_B_A","Immidiate_borrower_basis","G",16,"Tillgång","Ej specificerad","Återstående löptid <= 1 år","Australia","(S1) Nationell ekonomi, totalt","V"]
["Immidiate_borrower_basis","$H$16","","5_A_EF_LS_X_X_AU_N_V_B_A","Immidiate_borrower_basis","H",16,"Tillgång","Ej specificerad","Återstående löptid > 1 år <= 2 år","Australia","(S1) Nationell ekonomi, totalt","V"]
["Immidiate_borrower_basis","$I$16","","5_A_EF_LY_X_X_AU_N_V_B_A","Immidiate_borrower_basis","I",16,"Tillgång","Ej specificerad","Återstående löptid > 2 år","Australia","(S1) Nationell ekonomi, totalt","V"]
["Immidiate_borrower_basis","$J$16","","5_A_EF_LZ_X_X_AU_N_V_B_A","Immidiate_borrower_basis","J",16,"Tillgång","Ej specificerad","Ej fördelad på återstående löptid","Australia","(S1) Nationell ekonomi, totalt","V"]
["Immidiate_borrower_basis","$K$16","","5_A_EF_X_X_X_AU_N12111_V_B_A","Immidiate_borrower_basis","K",16,"Tillgång","Ej specificerad","Ej specificerad","Australia","Banker inklusive centralbanker","V"]
["Immidiate_borrower_basis","$L$16","","5_A_EF_X_X_X_AU_NXU_V_B_A","Immidiate_borrower_basis","L",16,"Tillgång","Ej specificerad","Ej specificerad","Australia","Off sektor + off ägda ftg utom banker","V"]
["Immidiate_borrower_basis","$M$16","","5_A_EF_X_X_X_AU_N122_V_B_A","Immidiate_borrower_basis","M",16,"Tillgång","Ej specificerad","Ej specificerad","Australia","Icke-monetära finansinstitut","V"]
["Immidiate_borrower_basis","$N$16","","5_A_EF_X_X_X_AU_N11_V_B_A","Immidiate_borrower_basis","N",16,"Tillgång","Ej specificerad","Ej specificerad","Australia","1 (S11)  Icke-finansiella företag","V"]
["Immidiate_borrower_basis","$O$16","","5_A_EF_X_X_X_AU_N3_V_B_A","Immidiate_borrower_basis","O",16,"Tillgång","Ej specificerad","Ej specificerad","Australia","Hushåll + Hushållens icke-vinstdrivande","V"]
["Immidiate_borrower_basis","$P$16","","5_A_EF_X_X_X_AU_N9_V_B_A","Immidiate_borrower_basis","P",16,"Tillgång","Ej specificerad","Ej specificerad","Australia","Ej motpartsfördelat","V"]
["Immidiate_borrower_basis","$F$17",0,"5_A_EF_X_X_X_AT_N_V_B_A","Immidiate_borrower_basis","F",17,"Tillgång","Ej specificerad","Ej specificerad","Austria","(S1) Nationell ekonomi, totalt","V"]
["Immidiate_borrower_basis","$G$17","","5_A_EF_LR_X_X_AT_N_V_B_A","Immidiate_borrower_basis","G",17,"Tillgång","Ej specificerad","Återstående löptid <= 1 år","Austria","(S1) Nationell ekonomi, totalt","V"]
["Immidiate_borrower_basis","$H$17","","5_A_EF_LS_X_X_AT_N_V_B_A","Immidiate_borrower_basis","H",17,"Tillgång","Ej specificerad","Återstående löptid > 1 år <= 2 år","Austria","(S1) Nationell ekonomi, totalt","V"]
["Immidiate_borrower_basis","$I$17","","5_A_EF_LY_X_X_AT_N_V_B_A","Immidiate_borrower_basis","I",17,"Tillgång","Ej specificerad","Återstående löptid > 2 år","Austria","(S1) Nationell ekonomi, totalt","V"]
["Immidiate_borrower_basis","$J$17","","5_A_EF_LZ_X_X_AT_N_V_B_A","Immidiate_borrower_basis","J",17,"Tillgång","Ej specificerad","Ej fördelad på återstående löptid","Austria","(S1) Nationell ekonomi, totalt","V"]
["Immidiate_borrower_basis","$K$17","","5_A_EF_X_X_X_AT_N12111_V_B_A","Immidiate_borrower_basis","K",17,"Tillgång","Ej specificerad","Ej specificerad","Austria","Banker inklusive centralbanker","V"]
["Immidiate_borrower_basis","$L$17","","5_A_EF_X_X_X_AT_NXU_V_B_A","Immidiate_borrower_basis","L",17,"Tillgång","Ej specificerad","Ej specificerad","Austria","Off sektor + off ägda ftg utom banker","V"]
["Immidiate_borrower_basis","$M$17","","5_A_EF_X_X_X_AT_N122_V_B_A","Immidiate_borrower_basis","M",17,"Tillgång","Ej specificerad","Ej specificerad","Austria","Icke-monetära finansinstitut","V"]
["Immidiate_borrower_basis","$N$17","","5_A_EF_X_X_X_AT_N11_V_B_A","Immidiate_borrower_basis","N",17,"Tillgång","Ej specificerad","Ej specificerad","Austria","1 (S11)  Icke-finansiella företag","V"]
["Immidiate_borrower_basis","$O$17","","5_A_EF_X_X_X_AT_N3_V_B_A","Immidiate_borrower_basis","O",17,"Tillgång","Ej specificerad","Ej specificerad","Austria","Hushåll + Hushållens icke-vinstdrivande","V"]
["Immidiate_borrower_basis","$P$17","","5_A_EF_X_X_X_AT_N9_V_B_A","Immidiate_borrower_basis","P",17,"Tillgång","Ej specificerad","Ej specificerad","Austria","Ej motpartsfördelat","V"]
["Immidiate_borrower_basis","$F$18",0,"5_A_EF_X_X_X_BE_N_V_B_A","Immidiate_borrower_basis","F",18,"Tillgång","Ej specificerad","Ej specificerad","Belgium","(S1) Nationell ekonomi, totalt","V"]
["Immidiate_borrower_basis","$G$18","","5_A_EF_LR_X_X_BE_N_V_B_A","Immidiate_borrower_basis","G",18,"Tillgång","Ej specificerad","Återstående löptid <= 1 år","Belgium","(S1) Nationell ekonomi, totalt","V"]
["Immidiate_borrower_basis","$H$18","","5_A_EF_LS_X_X_BE_N_V_B_A","Immidiate_borrower_basis","H",18,"Tillgång","Ej specificerad","Återstående löptid > 1 år <= 2 år","Belgium","(S1) Nationell ekonomi, totalt","V"]
["Immidiate_borrower_basis","$I$18","","5_A_EF_LY_X_X_BE_N_V_B_A","Immidiate_borrower_basis","I",18,"Tillgång","Ej specificerad","Återstående löptid > 2 år","Belgium","(S1) Nationell ekonomi, totalt","V"]
["Immidiate_borrower_basis","$J$18","","5_A_EF_LZ_X_X_BE_N_V_B_A","Immidiate_borrower_basis","J",18,"Tillgång","Ej specificerad","Ej fördelad på återstående löptid","Belgium","(S1) Nationell ekonomi, totalt","V"]
["Immidiate_borrower_basis","$K$18","","5_A_EF_X_X_X_BE_N12111_V_B_A","Immidiate_borrower_basis","K",18,"Tillgång","Ej specificerad","Ej specificerad","Belgium","Banker inklusive centralbanker","V"]
["Immidiate_borrower_basis","$L$18","","5_A_EF_X_X_X_BE_NXU_V_B_A","Immidiate_borrower_basis","L",18,"Tillgång","Ej specificerad","Ej specificerad","Belgium","Off sektor + off ägda ftg utom banker","V"]
["Immidiate_borrower_basis","$M$18","","5_A_EF_X_X_X_BE_N122_V_B_A","Immidiate_borrower_basis","M",18,"Tillgång","Ej specificerad","Ej specificerad","Belgium","Icke-monetära finansinstitut","V"]
["Immidiate_borrower_basis","$N$18","","5_A_EF_X_X_X_BE_N11_V_B_A","Immidiate_borrower_basis","N",18,"Tillgång","Ej specificerad","Ej specificerad","Belgium","1 (S11)  Icke-finansiella företag","V"]
["Immidiate_borrower_basis","$O$18","","5_A_EF_X_X_X_BE_N3_V_B_A","Immidiate_borrower_basis","O",18,"Tillgång","Ej specificerad","Ej specificerad","Belgium","Hushåll + Hushållens icke-vinstdrivande","V"]
["Immidiate_borrower_basis","$P$18","","5_A_EF_X_X_X_BE_N9_V_B_A","Immidiate_borrower_basis","P",18,"Tillgång","Ej specificerad","Ej specificerad","Belgium","Ej motpartsfördelat","V"]
["Immidiate_borrower_basis","$F$19",0,"5_A_EF_X_X_X_BR_N_V_B_A","Immidiate_borrower_basis","F",19,"Tillgång","Ej specificerad","Ej specificerad","Brazil","(S1) Nationell ekonomi, totalt","V"]
["Immidiate_borrower_basis","$G$19","","5_A_EF_LR_X_X_BR_N_V_B_A","Immidiate_borrower_basis","G",19,"Tillgång","Ej specificerad","Återstående löptid <= 1 år","Brazil","(S1) Nationell ekonomi, totalt","V"]
["Immidiate_borrower_basis","$H$19","","5_A_EF_LS_X_X_BR_N_V_B_A","Immidiate_borrower_basis","H",19,"Tillgång","Ej specificerad","Återstående löptid > 1 år <= 2 år","Brazil","(S1) Nationell ekonomi, totalt","V"]
["Immidiate_borrower_basis","$I$19","","5_A_EF_LY_X_X_BR_N_V_B_A","Immidiate_borrower_basis","I",19,"Tillgång","Ej specificerad","Återstående löptid > 2 år","Brazil","(S1) Nationell ekonomi, totalt","V"]
["Immidiate_borrower_basis","$J$19","","5_A_EF_LZ_X_X_BR_N_V_B_A","Immidiate_borrower_basis","J",19,"Tillgång","Ej specificerad","Ej fördelad på återstående löptid","Brazil","(S1) Nationell ekonomi, totalt","V"]
["Immidiate_borrower_basis","$K$19","","5_A_EF_X_X_X_BR_N12111_V_B_A","Immidiate_borrower_basis","K",19,"Tillgång","Ej specificerad","Ej specificerad","Brazil","Banker inklusive centralbanker","V"]
["Immidiate_borrower_basis","$L$19","","5_A_EF_X_X_X_BR_NXU_V_B_A","Immidiate_borrower_basis","L",19,"Tillgång","Ej specificerad","Ej specificerad","Brazil","Off sektor + off ägda ftg utom banker","V"]
["Immidiate_borrower_basis","$M$19","","5_A_EF_X_X_X_BR_N122_V_B_A","Immidiate_borrower_basis","M",19,"Tillgång","Ej specificerad","Ej specificerad","Brazil","Icke-monetära finansinstitut","V"]
["Immidiate_borrower_basis","$N$19","","5_A_EF_X_X_X_BR_N11_V_B_A","Immidiate_borrower_basis","N",19,"Tillgång","Ej specificerad","Ej specificerad","Brazil","1 (S11)  Icke-finansiella företag","V"]
["Immidiate_borrower_basis","$O$19","","5_A_EF_X_X_X_BR_N3_V_B_A","Immidiate_borrower_basis","O",19,"Tillgång","Ej specificerad","Ej specificerad","Brazil","Hushåll + Hushållens icke-vinstdrivande","V"]
["Immidiate_borrower_basis","$P$19","","5_A_EF_X_X_X_BR_N9_V_B_A","Immidiate_borrower_basis","P",19,"Tillgång","Ej specificerad","Ej specificerad","Brazil","Ej motpartsfördelat","V"]
["Immidiate_borrower_basis","$F$20",0,"5_A_EF_X_X_X_CA_N_V_B_A","Immidiate_borrower_basis","F",20,"Tillgång","Ej specificerad","Ej specificerad","Canada","(S1) Nationell ekonomi, totalt","V"]
["Immidiate_borrower_basis","$G$20","","5_A_EF_LR_X_X_CA_N_V_B_A","Immidiate_borrower_basis","G",20,"Tillgång","Ej specificerad","Återstående löptid <= 1 år","Canada","(S1) Nationell ekonomi, totalt","V"]
["Immidiate_borrower_basis","$H$20","","5_A_EF_LS_X_X_CA_N_V_B_A","Immidiate_borrower_basis","H",20,"Tillgång","Ej specificerad","Återstående löptid > 1 år <= 2 år","Canada","(S1) Nationell ekonomi, totalt","V"]
["Immidiate_borrower_basis","$I$20","","5_A_EF_LY_X_X_CA_N_V_B_A","Immidiate_borrower_basis","I",20,"Tillgång","Ej specificerad","Återstående löptid > 2 år","Canada","(S1) Nationell ekonomi, totalt","V"]
["Immidiate_borrower_basis","$J$20","","5_A_EF_LZ_X_X_CA_N_V_B_A","Immidiate_borrower_basis","J",20,"Tillgång","Ej specificerad","Ej fördelad på återstående löptid","Canada","(S1) Nationell ekonomi, totalt","V"]
["Immidiate_borrower_basis","$K$20","","5_A_EF_X_X_X_CA_N12111_V_B_A","Immidiate_borrower_basis","K",20,"Tillgång","Ej specificerad","Ej specificerad","Canada","Banker inklusive centralbanker","V"]
["Immidiate_borrower_basis","$L$20","","5_A_EF_X_X_X_CA_NXU_V_B_A","Immidiate_borrower_basis","L",20,"Tillgång","Ej specificerad","Ej specificerad","Canada","Off sektor + off ägda ftg utom banker","V"]
["Immidiate_borrower_basis","$M$20","","5_A_EF_X_X_X_CA_N122_V_B_A","Immidiate_borrower_basis","M",20,"Tillgång","Ej specificerad","Ej specificerad","Canada","Icke-monetära finansinstitut","V"]
["Immidiate_borrower_basis","$N$20","","5_A_EF_X_X_X_CA_N11_V_B_A","Immidiate_borrower_basis","N",20,"Tillgång","Ej specificerad","Ej specificerad","Canada","1 (S11)  Icke-finansiella företag","V"]
["Immidiate_borrower_basis","$O$20","","5_A_EF_X_X_X_CA_N3_V_B_A","Immidiate_borrower_basis","O",20,"Tillgång","Ej specificerad","Ej specificerad","Canada","Hushåll + Hushållens icke-vinstdrivande","V"]
["Immidiate_borrower_basis","$P$20","","5_A_EF_X_X_X_CA_N9_V_B_A","Immidiate_borrower_basis","P",20,"Tillgång","Ej specificerad","Ej specificerad","Canada","Ej motpartsfördelat","V"]
["Immidiate_borrower_basis","$F$21",0,"5_A_EF_X_X_X_CL_N_V_B_A","Immidiate_borrower_basis","F",21,"Tillgång","Ej specificerad","Ej specificerad","Chile","(S1) Nationell ekonomi, totalt","V"]
["Immidiate_borrower_basis","$G$21","","5_A_EF_LR_X_X_CL_N_V_B_A","Immidiate_borrower_basis","G",21,"Tillgång","Ej specificerad","Återstående löptid <= 1 år","Chile","(S1) Nationell ekonomi, totalt","V"]
["Immidiate_borrower_basis","$H$21","","5_A_EF_LS_X_X_CL_N_V_B_A","Immidiate_borrower_basis","H",21,"Tillgång","Ej specificerad","Återstående löptid > 1 år <= 2 år","Chile","(S1) Nationell ekonomi, totalt","V"]
["Immidiate_borrower_basis","$I$21","","5_A_EF_LY_X_X_CL_N_V_B_A","Immidiate_borrower_basis","I",21,"Tillgång","Ej specificerad","Återstående löptid > 2 år","Chile","(S1) Nationell ekonomi, totalt","V"]
["Immidiate_borrower_basis","$J$21","","5_A_EF_LZ_X_X_CL_N_V_B_A","Immidiate_borrower_basis","J",21,"Tillgång","Ej specificerad","Ej fördelad på återstående löptid","Chile","(S1) Nationell ekonomi, totalt","V"]
["Immidiate_borrower_basis","$K$21","","5_A_EF_X_X_X_CL_N12111_V_B_A","Immidiate_borrower_basis","K",21,"Tillgång","Ej specificerad","Ej specificerad","Chile","Banker inklusive centralbanker","V"]
["Immidiate_borrower_basis","$L$21","","5_A_EF_X_X_X_CL_NXU_V_B_A","Immidiate_borrower_basis","L",21,"Tillgång","Ej specificerad","Ej specificerad","Chile","Off sektor + off ägda ftg utom banker","V"]
["Immidiate_borrower_basis","$M$21","","5_A_EF_X_X_X_CL_N122_V_B_A","Immidiate_borrower_basis","M",21,"Tillgång","Ej specificerad","Ej specificerad","Chile","Icke-monetära finansinstitut","V"]
["Immidiate_borrower_basis","$N$21",{"$f":"IF(ISBLANK(INDIRECT(CONCATENATE(\"'\",A66,\"'\",\"!\",B66))),\"\",(INDIRECT(CONCATENATE(\"'\",A66,\"'\",\"!\",B66))))","v":""},"5_A_EF_X_X_X_CL_N11_V_B_A","Immidiate_borrower_basis","N",21,"Tillgång","Ej specificerad","Ej specificerad","Chile","1 (S11)  Icke-finansiella företag","V"]
["Immidiate_borrower_basis","$O$21","","5_A_EF_X_X_X_CL_N3_V_B_A","Immidiate_borrower_basis","O",21,"Tillgång","Ej specificerad","Ej specificerad","Chile","Hushåll + Hushållens icke-vinstdrivande","V"]
["Immidiate_borrower_basis","$P$21","","5_A_EF_X_X_X_CL_N9_V_B_A","Immidiate_borrower_basis","P",21,"Tillgång","Ej specificerad","Ej specificerad","Chile","Ej motpartsfördelat","V"]
["Immidiate_borrower_basis","$F$22",0,"5_A_EF_X_X_X_DK_N_V_B_A","Immidiate_borrower_basis","F",22,"Tillgång","Ej specificerad","Ej specificerad","Denmark","(S1) Nationell ekonomi, totalt","V"]
["Immidiate_borrower_basis","$G$22","","5_A_EF_LR_X_X_DK_N_V_B_A","Immidiate_borrower_basis","G",22,"Tillgång","Ej specificerad","Återstående löptid <= 1 år","Denmark","(S1) Nationell ekonomi, totalt","V"]
["Immidiate_borrower_basis","$H$22","","5_A_EF_LS_X_X_DK_N_V_B_A","Immidiate_borrower_basis","H",22,"Tillgång","Ej specificerad","Återstående löptid > 1 år <= 2 år","Denmark","(S1) Nationell ekonomi, totalt","V"]
["Immidiate_borrower_basis","$I$22","","5_A_EF_LY_X_X_DK_N_V_B_A","Immidiate_borrower_basis","I",22,"Tillgång","Ej specificerad","Återstående löptid > 2 år","Denmark","(S1) Nationell ekonomi, totalt","V"]
["Immidiate_borrower_basis","$J$22","","5_A_EF_LZ_X_X_DK_N_V_B_A","Immidiate_borrower_basis","J",22,"Tillgång","Ej specificerad","Ej fördelad på återstående löptid","Denmark","(S1) Nationell ekonomi, totalt","V"]
["Immidiate_borrower_basis","$K$22","","5_A_EF_X_X_X_DK_N12111_V_B_A","Immidiate_borrower_basis","K",22,"Tillgång","Ej specificerad","Ej specificerad","Denmark","Banker inklusive centralbanker","V"]
["Immidiate_borrower_basis","$L$22","","5_A_EF_X_X_X_DK_NXU_V_B_A","Immidiate_borrower_basis","L",22,"Tillgång","Ej specificerad","Ej specificerad","Denmark","Off sektor + off ägda ftg utom banker","V"]
["Immidiate_borrower_basis","$M$22","","5_A_EF_X_X_X_DK_N122_V_B_A","Immidiate_borrower_basis","M",22,"Tillgång","Ej specificerad","Ej specificerad","Denmark","Icke-monetära finansinstitut","V"]
["Immidiate_borrower_basis","$N$22","","5_A_EF_X_X_X_DK_N11_V_B_A","Immidiate_borrower_basis","N",22,"Tillgång","Ej specificerad","Ej specificerad","Denmark","1 (S11)  Icke-finansiella företag","V"]
["Immidiate_borrower_basis","$O$22","","5_A_EF_X_X_X_DK_N3_V_B_A","Immidiate_borrower_basis","O",22,"Tillgång","Ej specificerad","Ej specificerad","Denmark","Hushåll + Hushållens icke-vinstdrivande","V"]
["Immidiate_borrower_basis","$P$22","","5_A_EF_X_X_X_DK_N9_V_B_A","Immidiate_borrower_basis","P",22,"Tillgång","Ej specificerad","Ej specificerad","Denmark","Ej motpartsfördelat","V"]
["Immidiate_borrower_basis","$F$23",0,"5_A_EF_X_X_X_FI_N_V_B_A","Immidiate_borrower_basis","F",23,"Tillgång","Ej specificerad","Ej specificerad","Finland","(S1) Nationell ekonomi, totalt","V"]
["Immidiate_borrower_basis","$G$23","","5_A_EF_LR_X_X_FI_N_V_B_A","Immidiate_borrower_basis","G",23,"Tillgång","Ej specificerad","Återstående löptid <= 1 år","Finland","(S1) Nationell ekonomi, totalt","V"]
["Immidiate_borrower_basis","$H$23","","5_A_EF_LS_X_X_FI_N_V_B_A","Immidiate_borrower_basis","H",23,"Tillgång","Ej specificerad","Återstående löptid > 1 år <= 2 år","Finland","(S1) Nationell ekonomi, totalt","V"]
["Immidiate_borrower_basis","$I$23","","5_A_EF_LY_X_X_FI_N_V_B_A","Immidiate_borrower_basis","I",23,"Tillgång","Ej specificerad","Återstående löptid > 2 år","Finland","(S1) Nationell ekonomi, totalt","V"]
["Immidiate_borrower_basis","$J$23","","5_A_EF_LZ_X_X_FI_N_V_B_A","Immidiate_borrower_basis","J",23,"Tillgång","Ej specificerad","Ej fördelad på återstående löptid","Finland","(S1) Nationell ekonomi, totalt","V"]
["Immidiate_borrower_basis","$K$23","","5_A_EF_X_X_X_FI_N12111_V_B_A","Immidiate_borrower_basis","K",23,"Tillgång","Ej specificerad","Ej specificerad","Finland","Banker inklusive centralbanker","V"]
["Immidiate_borrower_basis","$L$23","","5_A_EF_X_X_X_FI_NXU_V_B_A","Immidiate_borrower_basis","L",23,"Tillgång","Ej specificerad","Ej specificerad","Finland","Off sektor + off ägda ftg utom banker","V"]
["Immidiate_borrower_basis","$M$23","","5_A_EF_X_X_X_FI_N122_V_B_A","Immidiate_borrower_basis","M",23,"Tillgång","Ej specificerad","Ej specificerad","Finland","Icke-monetära finansinstitut","V"]
["Immidiate_borrower_basis","$N$23","","5_A_EF_X_X_X_FI_N11_V_B_A","Immidiate_borrower_basis","N",23,"Tillgång","Ej specificerad","Ej specificerad","Finland","1 (S11)  Icke-finansiella företag","V"]
["Immidiate_borrower_basis","$O$23","","5_A_EF_X_X_X_FI_N3_V_B_A","Immidiate_borrower_basis","O",23,"Tillgång","Ej specificerad","Ej specificerad","Finland","Hushåll + Hushållens icke-vinstdrivande","V"]
["Immidiate_borrower_basis","$P$23","","5_A_EF_X_X_X_FI_N9_V_B_A","Immidiate_borrower_basis","P",23,"Tillgång","Ej specificerad","Ej specificerad","Finland","Ej motpartsfördelat","V"]
["Immidiate_borrower_basis","$F$24",0,"5_A_EF_X_X_X_FR_N_V_B_A","Immidiate_borrower_basis","F",24,"Tillgång","Ej specificerad","Ej specificerad","France","(S1) Nationell ekonomi, totalt","V"]
["Immidiate_borrower_basis","$G$24","","5_A_EF_LR_X_X_FR_N_V_B_A","Immidiate_borrower_basis","G",24,"Tillgång","Ej specificerad","Återstående löptid <= 1 år","France","(S1) Nationell ekonomi, totalt","V"]
["Immidiate_borrower_basis","$H$24","","5_A_EF_LS_X_X_FR_N_V_B_A","Immidiate_borrower_basis","H",24,"Tillgång","Ej specificerad","Återstående löptid > 1 år <= 2 år","France","(S1) Nationell ekonomi, totalt","V"]
["Immidiate_borrower_basis","$I$24","","5_A_EF_LY_X_X_FR_N_V_B_A","Immidiate_borrower_basis","I",24,"Tillgång","Ej specificerad","Återstående löptid > 2 år","France","(S1) Nationell ekonomi, totalt","V"]
["Immidiate_borrower_basis","$J$24","","5_A_EF_LZ_X_X_FR_N_V_B_A","Immidiate_borrower_basis","J",24,"Tillgång","Ej specificerad","Ej fördelad på återstående löptid","France","(S1) Nationell ekonomi, totalt","V"]
["Immidiate_borrower_basis","$K$24","","5_A_EF_X_X_X_FR_N12111_V_B_A","Immidiate_borrower_basis","K",24,"Tillgång","Ej specificerad","Ej specificerad","France","Banker inklusive centralbanker","V"]
["Immidiate_borrower_basis","$L$24","","5_A_EF_X_X_X_FR_NXU_V_B_A","Immidiate_borrower_basis","L",24,"Tillgång","Ej specificerad","Ej specificerad","France","Off sektor + off ägda ftg utom banker","V"]
["Immidiate_borrower_basis","$M$24","","5_A_EF_X_X_X_FR_N122_V_B_A","Immidiate_borrower_basis","M",24,"Tillgång","Ej specificerad","Ej specificerad","France","Icke-monetära finansinstitut","V"]
["Immidiate_borrower_basis","$N$24","","5_A_EF_X_X_X_FR_N11_V_B_A","Immidiate_borrower_basis","N",24,"Tillgång","Ej specificerad","Ej specificerad","France","1 (S11)  Icke-finansiella företag","V"]
["Immidiate_borrower_basis","$O$24","","5_A_EF_X_X_X_FR_N3_V_B_A","Immidiate_borrower_basis","O",24,"Tillgång","Ej specificerad","Ej specificerad","France","Hushåll + Hushållens icke-vinstdrivande","V"]
["Immidiate_borrower_basis","$P$24","","5_A_EF_X_X_X_FR_N9_V_B_A","Immidiate_borrower_basis","P",24,"Tillgång","Ej specificerad","Ej specificerad","France","Ej motpartsfördelat","V"]
["Immidiate_borrower_basis","$F$25",0,"5_A_EF_X_X_X_DE_N_V_B_A","Immidiate_borrower_basis","F",25,"Tillgång","Ej specificerad","Ej specificerad","Germany","(S1) Nationell ekonomi, totalt","V"]
["Immidiate_borrower_basis","$G$25","","5_A_EF_LR_X_X_DE_N_V_B_A","Immidiate_borrower_basis","G",25,"Tillgång","Ej specificerad","Återstående löptid <= 1 år","Germany","(S1) Nationell ekonomi, totalt","V"]
["Immidiate_borrower_basis","$H$25","","5_A_EF_LS_X_X_DE_N_V_B_A","Immidiate_borrower_basis","H",25,"Tillgång","Ej specificerad","Återstående löptid > 1 år <= 2 år","Germany","(S1) Nationell ekonomi, totalt","V"]
["Immidiate_borrower_basis","$I$25","","5_A_EF_LY_X_X_DE_N_V_B_A","Immidiate_borrower_basis","I",25,"Tillgång","Ej specificerad","Återstående löptid > 2 år","Germany","(S1) Nationell ekonomi, totalt","V"]
["Immidiate_borrower_basis","$J$25","","5_A_EF_LZ_X_X_DE_N_V_B_A","Immidiate_borrower_basis","J",25,"Tillgång","Ej specificerad","Ej fördelad på återstående löptid","Germany","(S1) Nationell ekonomi, totalt","V"]
["Immidiate_borrower_basis","$K$25","","5_A_EF_X_X_X_DE_N12111_V_B_A","Immidiate_borrower_basis","K",25,"Tillgång","Ej specificerad","Ej specificerad","Germany","Banker inklusive centralbanker","V"]
["Immidiate_borrower_basis","$L$25","","5_A_EF_X_X_X_DE_NXU_V_B_A","Immidiate_borrower_basis","L",25,"Tillgång","Ej specificerad","Ej specificerad","Germany","Off sektor + off ägda ftg utom banker","V"]
["Immidiate_borrower_basis","$M$25","","5_A_EF_X_X_X_DE_N122_V_B_A","Immidiate_borrower_basis","M",25,"Tillgång","Ej specificerad","Ej specificerad","Germany","Icke-monetära finansinstitut","V"]
["Immidiate_borrower_basis","$N$25","","5_A_EF_X_X_X_DE_N11_V_B_A","Immidiate_borrower_basis","N",25,"Tillgång","Ej specificerad","Ej specificerad","Germany","1 (S11)  Icke-finansiella företag","V"]
["Immidiate_borrower_basis","$O$25","","5_A_EF_X_X_X_DE_N3_V_B_A","Immidiate_borrower_basis","O",25,"Tillgång","Ej specificerad","Ej specificerad","Germany","Hushåll + Hushållens icke-vinstdrivande","V"]
["Immidiate_borrower_basis","$P$25","","5_A_EF_X_X_X_DE_N9_V_B_A","Immidiate_borrower_basis","P",25,"Tillgång","Ej specificerad","Ej specificerad","Germany","Ej motpartsfördelat","V"]
["Immidiate_borrower_basis","$F$26",0,"5_A_EF_X_X_X_GR_N_V_B_A","Immidiate_borrower_basis","F",26,"Tillgång","Ej specificerad","Ej specificerad","Greece","(S1) Nationell ekonomi, totalt","V"]
["Immidiate_borrower_basis","$G$26","","5_A_EF_LR_X_X_GR_N_V_B_A","Immidiate_borrower_basis","G",26,"Tillgång","Ej specificerad","Återstående löptid <= 1 år","Greece","(S1) Nationell ekonomi, totalt","V"]
["Immidiate_borrower_basis","$H$26","","5_A_EF_LS_X_X_GR_N_V_B_A","Immidiate_borrower_basis","H",26,"Tillgång","Ej specificerad","Återstående löptid > 1 år <= 2 år","Greece","(S1) Nationell ekonomi, totalt","V"]
["Immidiate_borrower_basis","$I$26","","5_A_EF_LY_X_X_GR_N_V_B_A","Immidiate_borrower_basis","I",26,"Tillgång","Ej specificerad","Återstående löptid > 2 år","Greece","(S1) Nationell ekonomi, totalt","V"]
["Immidiate_borrower_basis","$J$26","","5_A_EF_LZ_X_X_GR_N_V_B_A","Immidiate_borrower_basis","J",26,"Tillgång","Ej specificerad","Ej fördelad på återstående löptid","Greece","(S1) Nationell ekonomi, totalt","V"]
["Immidiate_borrower_basis","$K$26","","5_A_EF_X_X_X_GR_N12111_V_B_A","Immidiate_borrower_basis","K",26,"Tillgång","Ej specificerad","Ej specificerad","Greece","Banker inklusive centralbanker","V"]
["Immidiate_borrower_basis","$L$26","","5_A_EF_X_X_X_GR_NXU_V_B_A","Immidiate_borrower_basis","L",26,"Tillgång","Ej specificerad","Ej specificerad","Greece","Off sektor + off ägda ftg utom banker","V"]
["Immidiate_borrower_basis","$M$26","","5_A_EF_X_X_X_GR_N122_V_B_A","Immidiate_borrower_basis","M",26,"Tillgång","Ej specificerad","Ej specificerad","Greece","Icke-monetära finansinstitut","V"]
["Immidiate_borrower_basis","$N$26","","5_A_EF_X_X_X_GR_N11_V_B_A","Immidiate_borrower_basis","N",26,"Tillgång","Ej specificerad","Ej specificerad","Greece","1 (S11)  Icke-finansiella företag","V"]
["Immidiate_borrower_basis","$O$26","","5_A_EF_X_X_X_GR_N3_V_B_A","Immidiate_borrower_basis","O",26,"Tillgång","Ej specificerad","Ej specificerad","Greece","Hushåll + Hushållens icke-vinstdrivande","V"]
["Immidiate_borrower_basis","$P$26","","5_A_EF_X_X_X_GR_N9_V_B_A","Immidiate_borrower_basis","P",26,"Tillgång","Ej specificerad","Ej specificerad","Greece","Ej motpartsfördelat","V"]
["Immidiate_borrower_basis","$F$27",0,"5_A_EF_X_X_X_HK_N_V_B_A","Immidiate_borrower_basis","F",27,"Tillgång","Ej specificerad","Ej specificerad","Hong Kong","(S1) Nationell ekonomi, totalt","V"]
["Immidiate_borrower_basis","$G$27","","5_A_EF_LR_X_X_HK_N_V_B_A","Immidiate_borrower_basis","G",27,"Tillgång","Ej specificerad","Återstående löptid <= 1 år","Hong Kong","(S1) Nationell ekonomi, totalt","V"]
["Immidiate_borrower_basis","$H$27","","5_A_EF_LS_X_X_HK_N_V_B_A","Immidiate_borrower_basis","H",27,"Tillgång","Ej specificerad","Återstående löptid > 1 år <= 2 år","Hong Kong","(S1) Nationell ekonomi, totalt","V"]
["Immidiate_borrower_basis","$I$27","","5_A_EF_LY_X_X_HK_N_V_B_A","Immidiate_borrower_basis","I",27,"Tillgång","Ej specificerad","Återstående löptid > 2 år","Hong Kong","(S1) Nationell ekonomi, totalt","V"]
["Immidiate_borrower_basis","$J$27","","5_A_EF_LZ_X_X_HK_N_V_B_A","Immidiate_borrower_basis","J",27,"Tillgång","Ej specificerad","Ej fördelad på återstående löptid","Hong Kong","(S1) Nationell ekonomi, totalt","V"]
["Immidiate_borrower_basis","$K$27","","5_A_EF_X_X_X_HK_N12111_V_B_A","Immidiate_borrower_basis","K",27,"Tillgång","Ej specificerad","Ej specificerad","Hong Kong","Banker inklusive centralbanker","V"]
["Immidiate_borrower_basis","$L$27",{"$f":"IF(ISBLANK(INDIRECT(CONCATENATE(\"'\",A130,\"'\",\"!\",B130))),\"\",(INDIRECT(CONCATENATE(\"'\",A130,\"'\",\"!\",B130))))","v":""},"5_A_EF_X_X_X_HK_NXU_V_B_A","Immidiate_borrower_basis","L",27,"Tillgång","Ej specificerad","Ej specificerad","Hong Kong","Off sektor + off ägda ftg utom banker","V"]
["Immidiate_borrower_basis","$M$27","","5_A_EF_X_X_X_HK_N122_V_B_A","Immidiate_borrower_basis","M",27,"Tillgång","Ej specificerad","Ej specificerad","Hong Kong","Icke-monetära finansinstitut","V"]
["Immidiate_borrower_basis","$N$27","","5_A_EF_X_X_X_HK_N11_V_B_A","Immidiate_borrower_basis","N",27,"Tillgång","Ej specificerad","Ej specificerad","Hong Kong","1 (S11)  Icke-finansiella företag","V"]
["Immidiate_borrower_basis","$O$27","","5_A_EF_X_X_X_HK_N3_V_B_A","Immidiate_borrower_basis","O",27,"Tillgång","Ej specificerad","Ej specificerad","Hong Kong","Hushåll + Hushållens icke-vinstdrivande","V"]
["Immidiate_borrower_basis","$P$27","","5_A_EF_X_X_X_HK_N9_V_B_A","Immidiate_borrower_basis","P",27,"Tillgång","Ej specificerad","Ej specificerad","Hong Kong","Ej motpartsfördelat","V"]
["Immidiate_borrower_basis","$F$28",0,"5_A_EF_X_X_X_IN_N_V_B_A","Immidiate_borrower_basis","F",28,"Tillgång","Ej specificerad","Ej specificerad","India","(S1) Nationell ekonomi, totalt","V"]
["Immidiate_borrower_basis","$G$28","","5_A_EF_LR_X_X_IN_N_V_B_A","Immidiate_borrower_basis","G",28,"Tillgång","Ej specificerad","Återstående löptid <= 1 år","India","(S1) Nationell ekonomi, totalt","V"]
["Immidiate_borrower_basis","$H$28","","5_A_EF_LS_X_X_IN_N_V_B_A","Immidiate_borrower_basis","H",28,"Tillgång","Ej specificerad","Återstående löptid > 1 år <= 2 år","India","(S1) Nationell ekonomi, totalt","V"]
["Immidiate_borrower_basis","$I$28","","5_A_EF_LY_X_X_IN_N_V_B_A","Immidiate_borrower_basis","I",28,"Tillgång","Ej specificerad","Återstående löptid > 2 år","India","(S1) Nationell ekonomi, totalt","V"]
["Immidiate_borrower_basis","$J$28","","5_A_EF_LZ_X_X_IN_N_V_B_A","Immidiate_borrower_basis","J",28,"Tillgång","Ej specificerad","Ej fördelad på återstående löptid","India","(S1) Nationell ekonomi, totalt","V"]
["Immidiate_borrower_basis","$K$28","","5_A_EF_X_X_X_IN_N12111_V_B_A","Immidiate_borrower_basis","K",28,"Tillgång","Ej specificerad","Ej specificerad","India","Banker inklusive centralbanker","V"]
["Immidiate_borrower_basis","$L$28","","5_A_EF_X_X_X_IN_NXU_V_B_A","Immidiate_borrower_basis","L",28,"Tillgång","Ej specificerad","Ej specificerad","India","Off sektor + off ägda ftg utom banker","V"]
["Immidiate_borrower_basis","$M$28","","5_A_EF_X_X_X_IN_N122_V_B_A","Immidiate_borrower_basis","M",28,"Tillgång","Ej specificerad","Ej specificerad","India","Icke-monetära finansinstitut","V"]
["Immidiate_borrower_basis","$N$28","","5_A_EF_X_X_X_IN_N11_V_B_A","Immidiate_borrower_basis","N",28,"Tillgång","Ej specificerad","Ej specificerad","India","1 (S11)  Icke-finansiella företag","V"]
["Immidiate_borrower_basis","$O$28","","5_A_EF_X_X_X_IN_N3_V_B_A","Immidiate_borrower_basis","O",28,"Tillgång","Ej specificerad","Ej specificerad","India","Hushåll + Hushållens icke-vinstdrivande","V"]
["Immidiate_borrower_basis","$P$28","","5_A_EF_X_X_X_IN_N9_V_B_A","Immidiate_borrower_basis","P",28,"Tillgång","Ej specificerad","Ej specificerad","India","Ej motpartsfördelat","V"]
["Immidiate_borrower_basis","$F$29",0,"5_A_EF_X_X_X_IE_N_V_B_A","Immidiate_borrower_basis","F",29,"Tillgång","Ej specificerad","Ej specificerad","Ireland","(S1) Nationell ekonomi, totalt","V"]
["Immidiate_borrower_basis","$G$29","","5_A_EF_LR_X_X_IE_N_V_B_A","Immidiate_borrower_basis","G",29,"Tillgång","Ej specificerad","Återstående löptid <= 1 år","Ireland","(S1) Nationell ekonomi, totalt","V"]
["Immidiate_borrower_basis","$H$29","","5_A_EF_LS_X_X_IE_N_V_B_A","Immidiate_borrower_basis","H",29,"Tillgång","Ej specificerad","Återstående löptid > 1 år <= 2 år","Ireland","(S1) Nationell ekonomi, totalt","V"]
["Immidiate_borrower_basis","$I$29","","5_A_EF_LY_X_X_IE_N_V_B_A","Immidiate_borrower_basis","I",29,"Tillgång","Ej specificerad","Återstående löptid > 2 år","Ireland","(S1) Nationell ekonomi, totalt","V"]
["Immidiate_borrower_basis","$J$29","","5_A_EF_LZ_X_X_IE_N_V_B_A","Immidiate_borrower_basis","J",29,"Tillgång","Ej specificerad","Ej fördelad på återstående löptid","Ireland","(S1) Nationell ekonomi, totalt","V"]
["Immidiate_borrower_basis","$K$29","","5_A_EF_X_X_X_IE_N12111_V_B_A","Immidiate_borrower_basis","K",29,"Tillgång","Ej specificerad","Ej specificerad","Ireland","Banker inklusive centralbanker","V"]
["Immidiate_borrower_basis","$L$29","","5_A_EF_X_X_X_IE_NXU_V_B_A","Immidiate_borrower_basis","L",29,"Tillgång","Ej specificerad","Ej specificerad","Ireland","Off sektor + off ägda ftg utom banker","V"]
["Immidiate_borrower_basis","$M$29","","5_A_EF_X_X_X_IE_N122_V_B_A","Immidiate_borrower_basis","M",29,"Tillgång","Ej specificerad","Ej specificerad","Ireland","Icke-monetära finansinstitut","V"]
["Immidiate_borrower_basis","$N$29","","5_A_EF_X_X_X_IE_N11_V_B_A","Immidiate_borrower_basis","N",29,"Tillgång","Ej specificerad","Ej specificerad","Ireland","1 (S11)  Icke-finansiella företag","V"]
["Immidiate_borrower_basis","$O$29","","5_A_EF_X_X_X_IE_N3_V_B_A","Immidiate_borrower_basis","O",29,"Tillgång","Ej specificerad","Ej specificerad","Ireland","Hushåll + Hushållens icke-vinstdrivande","V"]
["Immidiate_borrower_basis","$P$29","","5_A_EF_X_X_X_IE_N9_V_B_A","Immidiate_borrower_basis","P",29,"Tillgång","Ej specificerad","Ej specificerad","Ireland","Ej motpartsfördelat","V"]
["Immidiate_borrower_basis","$F$30",0,"5_A_EF_X_X_X_IT_N_V_B_A","Immidiate_borrower_basis","F",30,"Tillgång","Ej specificerad","Ej specificerad","Italy","(S1) Nationell ekonomi, totalt","V"]
["Immidiate_borrower_basis","$G$30","","5_A_EF_LR_X_X_IT_N_V_B_A","Immidiate_borrower_basis","G",30,"Tillgång","Ej specificerad","Återstående löptid <= 1 år","Italy","(S1) Nationell ekonomi, totalt","V"]
["Immidiate_borrower_basis","$H$30","","5_A_EF_LS_X_X_IT_N_V_B_A","Immidiate_borrower_basis","H",30,"Tillgång","Ej specificerad","Återstående löptid > 1 år <= 2 år","Italy","(S1) Nationell ekonomi, totalt","V"]
["Immidiate_borrower_basis","$I$30","","5_A_EF_LY_X_X_IT_N_V_B_A","Immidiate_borrower_basis","I",30,"Tillgång","Ej specificerad","Återstående löptid > 2 år","Italy","(S1) Nationell ekonomi, totalt","V"]
["Immidiate_borrower_basis","$J$30","","5_A_EF_LZ_X_X_IT_N_V_B_A","Immidiate_borrower_basis","J",30,"Tillgång","Ej specificerad","Ej fördelad på återstående löptid","Italy","(S1) Nationell ekonomi, totalt","V"]
["Immidiate_borrower_basis","$K$30","","5_A_EF_X_X_X_IT_N12111_V_B_A","Immidiate_borrower_basis","K",30,"Tillgång","Ej specificerad","Ej specificerad","Italy","Banker inklusive centralbanker","V"]
["Immidiate_borrower_basis","$L$30","","5_A_EF_X_X_X_IT_NXU_V_B_A","Immidiate_borrower_basis","L",30,"Tillgång","Ej specificerad","Ej specificerad","Italy","Off sektor + off ägda ftg utom banker","V"]
["Immidiate_borrower_basis","$M$30","","5_A_EF_X_X_X_IT_N122_V_B_A","Immidiate_borrower_basis","M",30,"Tillgång","Ej specificerad","Ej specificerad","Italy","Icke-monetära finansinstitut","V"]
["Immidiate_borrower_basis","$N$30","","5_A_EF_X_X_X_IT_N11_V_B_A","Immidiate_borrower_basis","N",30,"Tillgång","Ej specificerad","Ej specificerad","Italy","1 (S11)  Icke-finansiella företag","V"]
["Immidiate_borrower_basis","$O$30","","5_A_EF_X_X_X_IT_N3_V_B_A","Immidiate_borrower_basis","O",30,"Tillgång","Ej specificerad","Ej specificerad","Italy","Hushåll + Hushållens icke-vinstdrivande","V"]
["Immidiate_borrower_basis","$P$30","","5_A_EF_X_X_X_IT_N9_V_B_A","Immidiate_borrower_basis","P",30,"Tillgång","Ej specificerad","Ej specificerad","Italy","Ej motpartsfördelat","V"]
["Immidiate_borrower_basis","$F$31",0,"5_A_EF_X_X_X_JP_N_V_B_A","Immidiate_borrower_basis","F",31,"Tillgång","Ej specificerad","Ej specificerad","Japan","(S1) Nationell ekonomi, totalt","V"]
["Immidiate_borrower_basis","$G$31","","5_A_EF_LR_X_X_JP_N_V_B_A","Immidiate_borrower_basis","G",31,"Tillgång","Ej specificerad","Återstående löptid <= 1 år","Japan","(S1) Nationell ekonomi, totalt","V"]
["Immidiate_borrower_basis","$H$31","","5_A_EF_LS_X_X_JP_N_V_B_A","Immidiate_borrower_basis","H",31,"Tillgång","Ej specificerad","Återstående löptid > 1 år <= 2 år","Japan","(S1) Nationell ekonomi, totalt","V"]
["Immidiate_borrower_basis","$I$31","","5_A_EF_LY_X_X_JP_N_V_B_A","Immidiate_borrower_basis","I",31,"Tillgång","Ej specificerad","Återstående löptid > 2 år","Japan","(S1) Nationell ekonomi, totalt","V"]
["Immidiate_borrower_basis","$J$31","","5_A_EF_LZ_X_X_JP_N_V_B_A","Immidiate_borrower_basis","J",31,"Tillgång","Ej specificerad","Ej fördelad på återstående löptid","Japan","(S1) Nationell ekonomi, totalt","V"]
["Immidiate_borrower_basis","$K$31","","5_A_EF_X_X_X_JP_N12111_V_B_A","Immidiate_borrower_basis","K",31,"Tillgång","Ej specificerad","Ej specificerad","Japan","Banker inklusive centralbanker","V"]
["Immidiate_borrower_basis","$L$31","","5_A_EF_X_X_X_JP_NXU_V_B_A","Immidiate_borrower_basis","L",31,"Tillgång","Ej specificerad","Ej specificerad","Japan","Off sektor + off ägda ftg utom banker","V"]
["Immidiate_borrower_basis","$M$31","","5_A_EF_X_X_X_JP_N122_V_B_A","Immidiate_borrower_basis","M",31,"Tillgång","Ej specificerad","Ej specificerad","Japan","Icke-monetära finansinstitut","V"]
["Immidiate_borrower_basis","$N$31","","5_A_EF_X_X_X_JP_N11_V_B_A","Immidiate_borrower_basis","N",31,"Tillgång","Ej specificerad","Ej specificerad","Japan","1 (S11)  Icke-finansiella företag","V"]
["Immidiate_borrower_basis","$O$31","","5_A_EF_X_X_X_JP_N3_V_B_A","Immidiate_borrower_basis","O",31,"Tillgång","Ej specificerad","Ej specificerad","Japan","Hushåll + Hushållens icke-vinstdrivande","V"]
["Immidiate_borrower_basis","$P$31","","5_A_EF_X_X_X_JP_N9_V_B_A","Immidiate_borrower_basis","P",31,"Tillgång","Ej specificerad","Ej specificerad","Japan","Ej motpartsfördelat","V"]
["Immidiate_borrower_basis","$F$32",0,"5_A_EF_X_X_X_LU_N_V_B_A","Immidiate_borrower_basis","F",32,"Tillgång","Ej specificerad","Ej specificerad","Luxembourg","(S1) Nationell ekonomi, totalt","V"]
["Immidiate_borrower_basis","$G$32","","5_A_EF_LR_X_X_LU_N_V_B_A","Immidiate_borrower_basis","G",32,"Tillgång","Ej specificerad","Återstående löptid <= 1 år","Luxembourg","(S1) Nationell ekonomi, totalt","V"]
["Immidiate_borrower_basis","$H$32","","5_A_EF_LS_X_X_LU_N_V_B_A","Immidiate_borrower_basis","H",32,"Tillgång","Ej specificerad","Återstående löptid > 1 år <= 2 år","Luxembourg","(S1) Nationell ekonomi, totalt","V"]
["Immidiate_borrower_basis","$I$32","","5_A_EF_LY_X_X_LU_N_V_B_A","Immidiate_borrower_basis","I",32,"Tillgång","Ej specificerad","Återstående löptid > 2 år","Luxembourg","(S1) Nationell ekonomi, totalt","V"]
["Immidiate_borrower_basis","$J$32","","5_A_EF_LZ_X_X_LU_N_V_B_A","Immidiate_borrower_basis","J",32,"Tillgång","Ej specificerad","Ej fördelad på återstående löptid","Luxembourg","(S1) Nationell ekonomi, totalt","V"]
["Immidiate_borrower_basis","$K$32","","5_A_EF_X_X_X_LU_N12111_V_B_A","Immidiate_borrower_basis","K",32,"Tillgång","Ej specificerad","Ej specificerad","Luxembourg","Banker inklusive centralbanker","V"]
["Immidiate_borrower_basis","$L$32","","5_A_EF_X_X_X_LU_NXU_V_B_A","Immidiate_borrower_basis","L",32,"Tillgång","Ej specificerad","Ej specificerad","Luxembourg","Off sektor + off ägda ftg utom banker","V"]
["Immidiate_borrower_basis","$M$32","","5_A_EF_X_X_X_LU_N122_V_B_A","Immidiate_borrower_basis","M",32,"Tillgång","Ej specificerad","Ej specificerad","Luxembourg","Icke-monetära finansinstitut","V"]
["Immidiate_borrower_basis","$N$32","","5_A_EF_X_X_X_LU_N11_V_B_A","Immidiate_borrower_basis","N",32,"Tillgång","Ej specificerad","Ej specificerad","Luxembourg","1 (S11)  Icke-finansiella företag","V"]
["Immidiate_borrower_basis","$O$32","","5_A_EF_X_X_X_LU_N3_V_B_A","Immidiate_borrower_basis","O",32,"Tillgång","Ej specificerad","Ej specificerad","Luxembourg","Hushåll + Hushållens icke-vinstdrivande","V"]
["Immidiate_borrower_basis","$P$32","","5_A_EF_X_X_X_LU_N9_V_B_A","Immidiate_borrower_basis","P",32,"Tillgång","Ej specificerad","Ej specificerad","Luxembourg","Ej motpartsfördelat","V"]
["Immidiate_borrower_basis","$F$33",0,"5_A_EF_X_X_X_MX_N_V_B_A","Immidiate_borrower_basis","F",33,"Tillgång","Ej specificerad","Ej specificerad","Mexico","(S1) Nationell ekonomi, totalt","V"]
["Immidiate_borrower_basis","$G$33","","5_A_EF_LR_X_X_MX_N_V_B_A","Immidiate_borrower_basis","G",33,"Tillgång","Ej specificerad","Återstående löptid <= 1 år","Mexico","(S1) Nationell ekonomi, totalt","V"]
["Immidiate_borrower_basis","$H$33","","5_A_EF_LS_X_X_MX_N_V_B_A","Immidiate_borrower_basis","H",33,"Tillgång","Ej specificerad","Återstående löptid > 1 år <= 2 år","Mexico","(S1) Nationell ekonomi, totalt","V"]
["Immidiate_borrower_basis","$I$33","","5_A_EF_LY_X_X_MX_N_V_B_A","Immidiate_borrower_basis","I",33,"Tillgång","Ej specificerad","Återstående löptid > 2 år","Mexico","(S1) Nationell ekonomi, totalt","V"]
["Immidiate_borrower_basis","$J$33",{"$f":"IF(ISBLANK(INDIRECT(CONCATENATE(\"'\",A194,\"'\",\"!\",B194))),\"\",(INDIRECT(CONCATENATE(\"'\",A194,\"'\",\"!\",B194))))","v":""},"5_A_EF_LZ_X_X_MX_N_V_B_A","Immidiate_borrower_basis","J",33,"Tillgång","Ej specificerad","Ej fördelad på återstående löptid","Mexico","(S1) Nationell ekonomi, totalt","V"]
["Immidiate_borrower_basis","$K$33","","5_A_EF_X_X_X_MX_N12111_V_B_A","Immidiate_borrower_basis","K",33,"Tillgång","Ej specificerad","Ej specificerad","Mexico","Banker inklusive centralbanker","V"]
["Immidiate_borrower_basis","$L$33","","5_A_EF_X_X_X_MX_NXU_V_B_A","Immidiate_borrower_basis","L",33,"Tillgång","Ej specificerad","Ej specificerad","Mexico","Off sektor + off ägda ftg utom banker","V"]
["Immidiate_borrower_basis","$M$33","","5_A_EF_X_X_X_MX_N122_V_B_A","Immidiate_borrower_basis","M",33,"Tillgång","Ej specificerad","Ej specificerad","Mexico","Icke-monetära finansinstitut","V"]
["Immidiate_borrower_basis","$N$33","","5_A_EF_X_X_X_MX_N11_V_B_A","Immidiate_borrower_basis","N",33,"Tillgång","Ej specificerad","Ej specificerad","Mexico","1 (S11)  Icke-finansiella företag","V"]
["Immidiate_borrower_basis","$O$33","","5_A_EF_X_X_X_MX_N3_V_B_A","Immidiate_borrower_basis","O",33,"Tillgång","Ej specificerad","Ej specificerad","Mexico","Hushåll + Hushållens icke-vinstdrivande","V"]
["Immidiate_borrower_basis","$P$33","","5_A_EF_X_X_X_MX_N9_V_B_A","Immidiate_borrower_basis","P",33,"Tillgång","Ej specificerad","Ej specificerad","Mexico","Ej motpartsfördelat","V"]
["Immidiate_borrower_basis","$F$34",0,"5_A_EF_X_X_X_NL_N_V_B_A","Immidiate_borrower_basis","F",34,"Tillgång","Ej specificerad","Ej specificerad","Netherlands","(S1) Nationell ekonomi, totalt","V"]
["Immidiate_borrower_basis","$G$34","","5_A_EF_LR_X_X_NL_N_V_B_A","Immidiate_borrower_basis","G",34,"Tillgång","Ej specificerad","Återstående löptid <= 1 år","Netherlands","(S1) Nationell ekonomi, totalt","V"]
["Immidiate_borrower_basis","$H$34","","5_A_EF_LS_X_X_NL_N_V_B_A","Immidiate_borrower_basis","H",34,"Tillgång","Ej specificerad","Återstående löptid > 1 år <= 2 år","Netherlands","(S1) Nationell ekonomi, totalt","V"]
["Immidiate_borrower_basis","$I$34","","5_A_EF_LY_X_X_NL_N_V_B_A","Immidiate_borrower_basis","I",34,"Tillgång","Ej specificerad","Återstående löptid > 2 år","Netherlands","(S1) Nationell ekonomi, totalt","V"]
["Immidiate_borrower_basis","$J$34","","5_A_EF_LZ_X_X_NL_N_V_B_A","Immidiate_borrower_basis","J",34,"Tillgång","Ej specificerad","Ej fördelad på återstående löptid","Netherlands","(S1) Nationell ekonomi, totalt","V"]
["Immidiate_borrower_basis","$K$34","","5_A_EF_X_X_X_NL_N12111_V_B_A","Immidiate_borrower_basis","K",34,"Tillgång","Ej specificerad","Ej specificerad","Netherlands","Banker inklusive centralbanker","V"]
["Immidiate_borrower_basis","$L$34","","5_A_EF_X_X_X_NL_NXU_V_B_A","Immidiate_borrower_basis","L",34,"Tillgång","Ej specificerad","Ej specificerad","Netherlands","Off sektor + off ägda ftg utom banker","V"]
["Immidiate_borrower_basis","$M$34","","5_A_EF_X_X_X_NL_N122_V_B_A","Immidiate_borrower_basis","M",34,"Tillgång","Ej specificerad","Ej specificerad","Netherlands","Icke-monetära finansinstitut","V"]
["Immidiate_borrower_basis","$N$34","","5_A_EF_X_X_X_NL_N11_V_B_A","Immidiate_borrower_basis","N",34,"Tillgång","Ej specificerad","Ej specificerad","Netherlands","1 (S11)  Icke-finansiella företag","V"]
["Immidiate_borrower_basis","$O$34","","5_A_EF_X_X_X_NL_N3_V_B_A","Immidiate_borrower_basis","O",34,"Tillgång","Ej specificerad","Ej specificerad","Netherlands","Hushåll + Hushållens icke-vinstdrivande","V"]
["Immidiate_borrower_basis","$P$34","","5_A_EF_X_X_X_NL_N9_V_B_A","Immidiate_borrower_basis","P",34,"Tillgång","Ej specificerad","Ej specificerad","Netherlands","Ej motpartsfördelat","V"]
["Immidiate_borrower_basis","$F$35",0,"5_A_EF_X_X_X_NO_N_V_B_A","Immidiate_borrower_basis","F",35,"Tillgång","Ej specificerad","Ej specificerad","Norway","(S1) Nationell ekonomi, totalt","V"]
["Immidiate_borrower_basis","$G$35","","5_A_EF_LR_X_X_NO_N_V_B_A","Immidiate_borrower_basis","G",35,"Tillgång","Ej specificerad","Återstående löptid <= 1 år","Norway","(S1) Nationell ekonomi, totalt","V"]
["Immidiate_borrower_basis","$H$35","","5_A_EF_LS_X_X_NO_N_V_B_A","Immidiate_borrower_basis","H",35,"Tillgång","Ej specificerad","Återstående löptid > 1 år <= 2 år","Norway","(S1) Nationell ekonomi, totalt","V"]
["Immidiate_borrower_basis","$I$35","","5_A_EF_LY_X_X_NO_N_V_B_A","Immidiate_borrower_basis","I",35,"Tillgång","Ej specificerad","Återstående löptid > 2 år","Norway","(S1) Nationell ekonomi, totalt","V"]
["Immidiate_borrower_basis","$J$35","","5_A_EF_LZ_X_X_NO_N_V_B_A","Immidiate_borrower_basis","J",35,"Tillgång","Ej specificerad","Ej fördelad på återstående löptid","Norway","(S1) Nationell ekonomi, totalt","V"]
["Immidiate_borrower_basis","$K$35","","5_A_EF_X_X_X_NO_N12111_V_B_A","Immidiate_borrower_basis","K",35,"Tillgång","Ej specificerad","Ej specificerad","Norway","Banker inklusive centralbanker","V"]
["Immidiate_borrower_basis","$L$35","","5_A_EF_X_X_X_NO_NXU_V_B_A","Immidiate_borrower_basis","L",35,"Tillgång","Ej specificerad","Ej specificerad","Norway","Off sektor + off ägda ftg utom banker","V"]
["Immidiate_borrower_basis","$M$35","","5_A_EF_X_X_X_NO_N122_V_B_A","Immidiate_borrower_basis","M",35,"Tillgång","Ej specificerad","Ej specificerad","Norway","Icke-monetära finansinstitut","V"]
["Immidiate_borrower_basis","$N$35","","5_A_EF_X_X_X_NO_N11_V_B_A","Immidiate_borrower_basis","N",35,"Tillgång","Ej specificerad","Ej specificerad","Norway","1 (S11)  Icke-finansiella företag","V"]
["Immidiate_borrower_basis","$O$35","","5_A_EF_X_X_X_NO_N3_V_B_A","Immidiate_borrower_basis","O",35,"Tillgång","Ej specificerad","Ej specificerad","Norway","Hushåll + Hushållens icke-vinstdrivande","V"]
["Immidiate_borrower_basis","$P$35","","5_A_EF_X_X_X_NO_N9_V_B_A","Immidiate_borrower_basis","P",35,"Tillgång","Ej specificerad","Ej specificerad","Norway","Ej motpartsfördelat","V"]
["Immidiate_borrower_basis","$F$36",0,"5_A_EF_X_X_X_PA_N_V_B_A","Immidiate_borrower_basis","F",36,"Tillgång","Ej specificerad","Ej specificerad","Panama","(S1) Nationell ekonomi, totalt","V"]
["Immidiate_borrower_basis","$G$36","","5_A_EF_LR_X_X_PA_N_V_B_A","Immidiate_borrower_basis","G",36,"Tillgång","Ej specificerad","Återstående löptid <= 1 år","Panama","(S1) Nationell ekonomi, totalt","V"]
["Immidiate_borrower_basis","$H$36","","5_A_EF_LS_X_X_PA_N_V_B_A","Immidiate_borrower_basis","H",36,"Tillgång","Ej specificerad","Återstående löptid > 1 år <= 2 år","Panama","(S1) Nationell ekonomi, totalt","V"]
["Immidiate_borrower_basis","$I$36","","5_A_EF_LY_X_X_PA_N_V_B_A","Immidiate_borrower_basis","I",36,"Tillgång","Ej specificerad","Återstående löptid > 2 år","Panama","(S1) Nationell ekonomi, totalt","V"]
["Immidiate_borrower_basis","$J$36","","5_A_EF_LZ_X_X_PA_N_V_B_A","Immidiate_borrower_basis","J",36,"Tillgång","Ej specificerad","Ej fördelad på återstående löptid","Panama","(S1) Nationell ekonomi, totalt","V"]
["Immidiate_borrower_basis","$K$36","","5_A_EF_X_X_X_PA_N12111_V_B_A","Immidiate_borrower_basis","K",36,"Tillgång","Ej specificerad","Ej specificerad","Panama","Banker inklusive centralbanker","V"]
["Immidiate_borrower_basis","$L$36","","5_A_EF_X_X_X_PA_NXU_V_B_A","Immidiate_borrower_basis","L",36,"Tillgång","Ej specificerad","Ej specificerad","Panama","Off sektor + off ägda ftg utom banker","V"]
["Immidiate_borrower_basis","$M$36","","5_A_EF_X_X_X_PA_N122_V_B_A","Immidiate_borrower_basis","M",36,"Tillgång","Ej specificerad","Ej specificerad","Panama","Icke-monetära finansinstitut","V"]
["Immidiate_borrower_basis","$N$36","","5_A_EF_X_X_X_PA_N11_V_B_A","Immidiate_borrower_basis","N",36,"Tillgång","Ej specificerad","Ej specificerad","Panama","1 (S11)  Icke-finansiella företag","V"]
["Immidiate_borrower_basis","$O$36","","5_A_EF_X_X_X_PA_N3_V_B_A","Immidiate_borrower_basis","O",36,"Tillgång","Ej specificerad","Ej specificerad","Panama","Hushåll + Hushållens icke-vinstdrivande","V"]
["Immidiate_borrower_basis","$P$36","","5_A_EF_X_X_X_PA_N9_V_B_A","Immidiate_borrower_basis","P",36,"Tillgång","Ej specificerad","Ej specificerad","Panama","Ej motpartsfördelat","V"]
["Immidiate_borrower_basis","$F$37",0,"5_A_EF_X_X_X_PT_N_V_B_A","Immidiate_borrower_basis","F",37,"Tillgång","Ej specificerad","Ej specificerad","Portugal","(S1) Nationell ekonomi, totalt","V"]
["Immidiate_borrower_basis","$G$37","","5_A_EF_LR_X_X_PT_N_V_B_A","Immidiate_borrower_basis","G",37,"Tillgång","Ej specificerad","Återstående löptid <= 1 år","Portugal","(S1) Nationell ekonomi, totalt","V"]
["Immidiate_borrower_basis","$H$37","","5_A_EF_LS_X_X_PT_N_V_B_A","Immidiate_borrower_basis","H",37,"Tillgång","Ej specificerad","Återstående löptid > 1 år <= 2 år","Portugal","(S1) Nationell ekonomi, totalt","V"]
["Immidiate_borrower_basis","$I$37","","5_A_EF_LY_X_X_PT_N_V_B_A","Immidiate_borrower_basis","I",37,"Tillgång","Ej specificerad","Återstående löptid > 2 år","Portugal","(S1) Nationell ekonomi, totalt","V"]
["Immidiate_borrower_basis","$J$37","","5_A_EF_LZ_X_X_PT_N_V_B_A","Immidiate_borrower_basis","J",37,"Tillgång","Ej specificerad","Ej fördelad på återstående löptid","Portugal","(S1) Nationell ekonomi, totalt","V"]
["Immidiate_borrower_basis","$K$37","","5_A_EF_X_X_X_PT_N12111_V_B_A","Immidiate_borrower_basis","K",37,"Tillgång","Ej specificerad","Ej specificerad","Portugal","Banker inklusive centralbanker","V"]
["Immidiate_borrower_basis","$L$37","","5_A_EF_X_X_X_PT_NXU_V_B_A","Immidiate_borrower_basis","L",37,"Tillgång","Ej specificerad","Ej specificerad","Portugal","Off sektor + off ägda ftg utom banker","V"]
["Immidiate_borrower_basis","$M$37","","5_A_EF_X_X_X_PT_N122_V_B_A","Immidiate_borrower_basis","M",37,"Tillgång","Ej specificerad","Ej specificerad","Portugal","Icke-monetära finansinstitut","V"]
["Immidiate_borrower_basis","$N$37","","5_A_EF_X_X_X_PT_N11_V_B_A","Immidiate_borrower_basis","N",37,"Tillgång","Ej specificerad","Ej specificerad","Portugal","1 (S11)  Icke-finansiella företag","V"]
["Immidiate_borrower_basis","$O$37","","5_A_EF_X_X_X_PT_N3_V_B_A","Immidiate_borrower_basis","O",37,"Tillgång","Ej specificerad","Ej specificerad","Portugal","Hushåll + Hushållens icke-vinstdrivande","V"]
["Immidiate_borrower_basis","$P$37","","5_A_EF_X_X_X_PT_N9_V_B_A","Immidiate_borrower_basis","P",37,"Tillgång","Ej specificerad","Ej specificerad","Portugal","Ej motpartsfördelat","V"]
["Immidiate_borrower_basis","$F$38",0,"5_A_EF_X_X_X_SG_N_V_B_A","Immidiate_borrower_basis","F",38,"Tillgång","Ej specificerad","Ej specificerad","Singapore","(S1) Nationell ekonomi, totalt","V"]
["Immidiate_borrower_basis","$G$38","","5_A_EF_LR_X_X_SG_N_V_B_A","Immidiate_borrower_basis","G",38,"Tillgång","Ej specificerad","Återstående löptid <= 1 år","Singapore","(S1) Nationell ekonomi, totalt","V"]
["Immidiate_borrower_basis","$H$38","","5_A_EF_LS_X_X_SG_N_V_B_A","Immidiate_borrower_basis","H",38,"Tillgång","Ej specificerad","Återstående löptid > 1 år <= 2 år","Singapore","(S1) Nationell ekonomi, totalt","V"]
["Immidiate_borrower_basis","$I$38","","5_A_EF_LY_X_X_SG_N_V_B_A","Immidiate_borrower_basis","I",38,"Tillgång","Ej specificerad","Återstående löptid > 2 år","Singapore","(S1) Nationell ekonomi, totalt","V"]
["Immidiate_borrower_basis","$J$38","","5_A_EF_LZ_X_X_SG_N_V_B_A","Immidiate_borrower_basis","J",38,"Tillgång","Ej specificerad","Ej fördelad på återstående löptid","Singapore","(S1) Nationell ekonomi, totalt","V"]
["Immidiate_borrower_basis","$K$38","","5_A_EF_X_X_X_SG_N12111_V_B_A","Immidiate_borrower_basis","K",38,"Tillgång","Ej specificerad","Ej specificerad","Singapore","Banker inklusive centralbanker","V"]
["Immidiate_borrower_basis","$L$38","","5_A_EF_X_X_X_SG_NXU_V_B_A","Immidiate_borrower_basis","L",38,"Tillgång","Ej specificerad","Ej specificerad","Singapore","Off sektor + off ägda ftg utom banker","V"]
["Immidiate_borrower_basis","$M$38","","5_A_EF_X_X_X_SG_N122_V_B_A","Immidiate_borrower_basis","M",38,"Tillgång","Ej specificerad","Ej specificerad","Singapore","Icke-monetära finansinstitut","V"]
["Immidiate_borrower_basis","$N$38","","5_A_EF_X_X_X_SG_N11_V_B_A","Immidiate_borrower_basis","N",38,"Tillgång","Ej specificerad","Ej specificerad","Singapore","1 (S11)  Icke-finansiella företag","V"]
["Immidiate_borrower_basis","$O$38","","5_A_EF_X_X_X_SG_N3_V_B_A","Immidiate_borrower_basis","O",38,"Tillgång","Ej specificerad","Ej specificerad","Singapore","Hushåll + Hushållens icke-vinstdrivande","V"]
["Immidiate_borrower_basis","$P$38","","5_A_EF_X_X_X_SG_N9_V_B_A","Immidiate_borrower_basis","P",38,"Tillgång","Ej specificerad","Ej specificerad","Singapore","Ej motpartsfördelat","V"]
["Immidiate_borrower_basis","$F$39",0,"5_A_EF_X_X_X_ES_N_V_B_A","Immidiate_borrower_basis","F",39,"Tillgång","Ej specificerad","Ej specificerad","Spain","(S1) Nationell ekonomi, totalt","V"]
["Immidiate_borrower_basis","$G$39","","5_A_EF_LR_X_X_ES_N_V_B_A","Immidiate_borrower_basis","G",39,"Tillgång","Ej specificerad","Återstående löptid <= 1 år","Spain","(S1) Nationell ekonomi, totalt","V"]
["Immidiate_borrower_basis","$H$39",{"$f":"IF(ISBLANK(INDIRECT(CONCATENATE(\"'\",A258,\"'\",\"!\",B258))),\"\",(INDIRECT(CONCATENATE(\"'\",A258,\"'\",\"!\",B258))))","v":""},"5_A_EF_LS_X_X_ES_N_V_B_A","Immidiate_borrower_basis","H",39,"Tillgång","Ej specificerad","Återstående löptid > 1 år <= 2 år","Spain","(S1) Nationell ekonomi, totalt","V"]
["Immidiate_borrower_basis","$I$39","","5_A_EF_LY_X_X_ES_N_V_B_A","Immidiate_borrower_basis","I",39,"Tillgång","Ej specificerad","Återstående löptid > 2 år","Spain","(S1) Nationell ekonomi, totalt","V"]
["Immidiate_borrower_basis","$J$39","","5_A_EF_LZ_X_X_ES_N_V_B_A","Immidiate_borrower_basis","J",39,"Tillgång","Ej specificerad","Ej fördelad på återstående löptid","Spain","(S1) Nationell ekonomi, totalt","V"]
["Immidiate_borrower_basis","$K$39","","5_A_EF_X_X_X_ES_N12111_V_B_A","Immidiate_borrower_basis","K",39,"Tillgång","Ej specificerad","Ej specificerad","Spain","Banker inklusive centralbanker","V"]
["Immidiate_borrower_basis","$L$39","","5_A_EF_X_X_X_ES_NXU_V_B_A","Immidiate_borrower_basis","L",39,"Tillgång","Ej specificerad","Ej specificerad","Spain","Off sektor + off ägda ftg utom banker","V"]
["Immidiate_borrower_basis","$M$39","","5_A_EF_X_X_X_ES_N122_V_B_A","Immidiate_borrower_basis","M",39,"Tillgång","Ej specificerad","Ej specificerad","Spain","Icke-monetära finansinstitut","V"]
["Immidiate_borrower_basis","$N$39","","5_A_EF_X_X_X_ES_N11_V_B_A","Immidiate_borrower_basis","N",39,"Tillgång","Ej specificerad","Ej specificerad","Spain","1 (S11)  Icke-finansiella företag","V"]
["Immidiate_borrower_basis","$O$39","","5_A_EF_X_X_X_ES_N3_V_B_A","Immidiate_borrower_basis","O",39,"Tillgång","Ej specificerad","Ej specificerad","Spain","Hushåll + Hushållens icke-vinstdrivande","V"]
["Immidiate_borrower_basis","$P$39","","5_A_EF_X_X_X_ES_N9_V_B_A","Immidiate_borrower_basis","P",39,"Tillgång","Ej specificerad","Ej specificerad","Spain","Ej motpartsfördelat","V"]
["Immidiate_borrower_basis","$F$40",0,"5_A_EF_X_X_X_1E_N_V_B_A2","Immidiate_borrower_basis","F",40,"Tillgång","Ej specificerad","Ej specificerad","Sweden","(S1) Nationell ekonomi, totalt","V"]
["Immidiate_borrower_basis","$G$40","","5_A_EF_LR_X_X_1E_N_V_B_A2","Immidiate_borrower_basis","G",40,"Tillgång","Ej specificerad","Återstående löptid <= 1 år","Sweden","(S1) Nationell ekonomi, totalt","V"]
["Immidiate_borrower_basis","$H$40","","5_A_EF_LS_X_X_1E_N_V_B_A2","Immidiate_borrower_basis","H",40,"Tillgång","Ej specificerad","Återstående löptid > 1 år <= 2 år","Sweden","(S1) Nationell ekonomi, totalt","V"]
["Immidiate_borrower_basis","$I$40","","5_A_EF_LY_X_X_1E_N_V_B_A2","Immidiate_borrower_basis","I",40,"Tillgång","Ej specificerad","Återstående löptid > 2 år","Sweden","(S1) Nationell ekonomi, totalt","V"]
["Immidiate_borrower_basis","$J$40","","5_A_EF_LZ_X_X_1E_N_V_B_A2","Immidiate_borrower_basis","J",40,"Tillgång","Ej specificerad","Ej fördelad på återstående löptid","Sweden","(S1) Nationell ekonomi, totalt","V"]
["Immidiate_borrower_basis","$K$40","","5_A_EF_X_X_X_1E_N12111_V_B_A2","Immidiate_borrower_basis","K",40,"Tillgång","Ej specificerad","Ej specificerad","Sweden","Banker inklusive centralbanker","V"]
["Immidiate_borrower_basis","$L$40","","5_A_EF_X_X_X_1E_NXU_V_B_A2","Immidiate_borrower_basis","L",40,"Tillgång","Ej specificerad","Ej specificerad","Sweden","Off sektor + off ägda ftg utom banker","V"]
["Immidiate_borrower_basis","$M$40","","5_A_EF_X_X_X_1E_N122_V_B_A2","Immidiate_borrower_basis","M",40,"Tillgång","Ej specificerad","Ej specificerad","Sweden","Icke-monetära finansinstitut","V"]
["Immidiate_borrower_basis","$N$40","","5_A_EF_X_X_X_1E_N11_V_B_A2","Immidiate_borrower_basis","N",40,"Tillgång","Ej specificerad","Ej specificerad","Sweden","1 (S11)  Icke-finansiella företag","V"]
["Immidiate_borrower_basis","$O$40","","5_A_EF_X_X_X_1E_N3_V_B_A2","Immidiate_borrower_basis","O",40,"Tillgång","Ej specificerad","Ej specificerad","Sweden","Hushåll + Hushållens icke-vinstdrivande","V"]
["Immidiate_borrower_basis","$P$40","","5_A_EF_X_X_X_1E_N9_V_B_A2","Immidiate_borrower_basis","P",40,"Tillgång","Ej specificerad","Ej specificerad","Sweden","Ej motpartsfördelat","V"]
["Immidiate_borrower_basis","$F$41",0,"5_A_EF_X_X_X_CH_N_V_B_A","Immidiate_borrower_basis","F",41,"Tillgång","Ej specificerad","Ej specificerad","Switzerland","(S1) Nationell ekonomi, totalt","V"]
["Immidiate_borrower_basis","$G$41","","5_A_EF_LR_X_X_CH_N_V_B_A","Immidiate_borrower_basis","G",41,"Tillgång","Ej specificerad","Återstående löptid <= 1 år","Switzerland","(S1) Nationell ekonomi, totalt","V"]
["Immidiate_borrower_basis","$H$41","","5_A_EF_LS_X_X_CH_N_V_B_A","Immidiate_borrower_basis","H",41,"Tillgång","Ej specificerad","Återstående löptid > 1 år <= 2 år","Switzerland","(S1) Nationell ekonomi, totalt","V"]
["Immidiate_borrower_basis","$I$41","","5_A_EF_LY_X_X_CH_N_V_B_A","Immidiate_borrower_basis","I",41,"Tillgång","Ej specificerad","Återstående löptid > 2 år","Switzerland","(S1) Nationell ekonomi, totalt","V"]
["Immidiate_borrower_basis","$J$41","","5_A_EF_LZ_X_X_CH_N_V_B_A","Immidiate_borrower_basis","J",41,"Tillgång","Ej specificerad","Ej fördelad på återstående löptid","Switzerland","(S1) Nationell ekonomi, totalt","V"]
["Immidiate_borrower_basis","$K$41","","5_A_EF_X_X_X_CH_N12111_V_B_A","Immidiate_borrower_basis","K",41,"Tillgång","Ej specificerad","Ej specificerad","Switzerland","Banker inklusive centralbanker","V"]
["Immidiate_borrower_basis","$L$41","","5_A_EF_X_X_X_CH_NXU_V_B_A","Immidiate_borrower_basis","L",41,"Tillgång","Ej specificerad","Ej specificerad","Switzerland","Off sektor + off ägda ftg utom banker","V"]
["Immidiate_borrower_basis","$M$41","","5_A_EF_X_X_X_CH_N122_V_B_A","Immidiate_borrower_basis","M",41,"Tillgång","Ej specificerad","Ej specificerad","Switzerland","Icke-monetära finansinstitut","V"]
["Immidiate_borrower_basis","$N$41","","5_A_EF_X_X_X_CH_N11_V_B_A","Immidiate_borrower_basis","N",41,"Tillgång","Ej specificerad","Ej specificerad","Switzerland","1 (S11)  Icke-finansiella företag","V"]
["Immidiate_borrower_basis","$O$41","","5_A_EF_X_X_X_CH_N3_V_B_A","Immidiate_borrower_basis","O",41,"Tillgång","Ej specificerad","Ej specificerad","Switzerland","Hushåll + Hushållens icke-vinstdrivande","V"]
["Immidiate_borrower_basis","$P$41","","5_A_EF_X_X_X_CH_N9_V_B_A","Immidiate_borrower_basis","P",41,"Tillgång","Ej specificerad","Ej specificerad","Switzerland","Ej motpartsfördelat","V"]
["Immidiate_borrower_basis","$F$42",0,"5_A_EF_X_X_X_TW_N_V_B_A","Immidiate_borrower_basis","F",42,"Tillgång","Ej specificerad","Ej specificerad","Taiwan, Province of China","(S1) Nationell ekonomi, totalt","V"]
["Immidiate_borrower_basis","$G$42","","5_A_EF_LR_X_X_TW_N_V_B_A","Immidiate_borrower_basis","G",42,"Tillgång","Ej specificerad","Återstående löptid <= 1 år","Taiwan, Province of China","(S1) Nationell ekonomi, totalt","V"]
["Immidiate_borrower_basis","$H$42","","5_A_EF_LS_X_X_TW_N_V_B_A","Immidiate_borrower_basis","H",42,"Tillgång","Ej specificerad","Återstående löptid > 1 år <= 2 år","Taiwan, Province of China","(S1) Nationell ekonomi, totalt","V"]
["Immidiate_borrower_basis","$I$42","","5_A_EF_LY_X_X_TW_N_V_B_A","Immidiate_borrower_basis","I",42,"Tillgång","Ej specificerad","Återstående löptid > 2 år","Taiwan, Province of China","(S1) Nationell ekonomi, totalt","V"]
["Immidiate_borrower_basis","$J$42","","5_A_EF_LZ_X_X_TW_N_V_B_A","Immidiate_borrower_basis","J",42,"Tillgång","Ej specificerad","Ej fördelad på återstående löptid","Taiwan, Province of China","(S1) Nationell ekonomi, totalt","V"]
["Immidiate_borrower_basis","$K$42","","5_A_EF_X_X_X_TW_N12111_V_B_A","Immidiate_borrower_basis","K",42,"Tillgång","Ej specificerad","Ej specificerad","Taiwan, Province of China","Banker inklusive centralbanker","V"]
["Immidiate_borrower_basis","$L$42","","5_A_EF_X_X_X_TW_NXU_V_B_A","Immidiate_borrower_basis","L",42,"Tillgång","Ej specificerad","Ej specificerad","Taiwan, Province of China","Off sektor + off ägda ftg utom banker","V"]
["Immidiate_borrower_basis","$M$42","","5_A_EF_X_X_X_TW_N122_V_B_A","Immidiate_borrower_basis","M",42,"Tillgång","Ej specificerad","Ej specificerad","Taiwan, Province of China","Icke-monetära finansinstitut","V"]
["Immidiate_borrower_basis","$N$42","","5_A_EF_X_X_X_TW_N11_V_B_A","Immidiate_borrower_basis","N",42,"Tillgång","Ej specificerad","Ej specificerad","Taiwan, Province of China","1 (S11)  Icke-finansiella företag","V"]
["Immidiate_borrower_basis","$O$42","","5_A_EF_X_X_X_TW_N3_V_B_A","Immidiate_borrower_basis","O",42,"Tillgång","Ej specificerad","Ej specificerad","Taiwan, Province of China","Hushåll + Hushållens icke-vinstdrivande","V"]
["Immidiate_borrower_basis","$P$42","","5_A_EF_X_X_X_TW_N9_V_B_A","Immidiate_borrower_basis","P",42,"Tillgång","Ej specificerad","Ej specificerad","Taiwan, Province of China","Ej motpartsfördelat","V"]
["Immidiate_borrower_basis","$F$43",0,"5_A_EF_X_X_X_TR_N_V_B_A","Immidiate_borrower_basis","F",43,"Tillgång","Ej specificerad","Ej specificerad","Turkey","(S1) Nationell ekonomi, totalt","V"]
["Immidiate_borrower_basis","$G$43","","5_A_EF_LR_X_X_TR_N_V_B_A","Immidiate_borrower_basis","G",43,"Tillgång","Ej specificerad","Återstående löptid <= 1 år","Turkey","(S1) Nationell ekonomi, totalt","V"]
["Immidiate_borrower_basis","$H$43","","5_A_EF_LS_X_X_TR_N_V_B_A","Immidiate_borrower_basis","H",43,"Tillgång","Ej specificerad","Återstående löptid > 1 år <= 2 år","Turkey","(S1) Nationell ekonomi, totalt","V"]
["Immidiate_borrower_basis","$I$43","","5_A_EF_LY_X_X_TR_N_V_B_A","Immidiate_borrower_basis","I",43,"Tillgång","Ej specificerad","Återstående löptid > 2 år","Turkey","(S1) Nationell ekonomi, totalt","V"]
["Immidiate_borrower_basis","$J$43","","5_A_EF_LZ_X_X_TR_N_V_B_A","Immidiate_borrower_basis","J",43,"Tillgång","Ej specificerad","Ej fördelad på återstående löptid","Turkey","(S1) Nationell ekonomi, totalt","V"]
["Immidiate_borrower_basis","$K$43","","5_A_EF_X_X_X_TR_N12111_V_B_A","Immidiate_borrower_basis","K",43,"Tillgång","Ej specificerad","Ej specificerad","Turkey","Banker inklusive centralbanker","V"]
["Immidiate_borrower_basis","$L$43","","5_A_EF_X_X_X_TR_NXU_V_B_A","Immidiate_borrower_basis","L",43,"Tillgång","Ej specificerad","Ej specificerad","Turkey","Off sektor + off ägda ftg utom banker","V"]
["Immidiate_borrower_basis","$M$43","","5_A_EF_X_X_X_TR_N122_V_B_A","Immidiate_borrower_basis","M",43,"Tillgång","Ej specificerad","Ej specificerad","Turkey","Icke-monetära finansinstitut","V"]
["Immidiate_borrower_basis","$N$43","","5_A_EF_X_X_X_TR_N11_V_B_A","Immidiate_borrower_basis","N",43,"Tillgång","Ej specificerad","Ej specificerad","Turkey","1 (S11)  Icke-finansiella företag","V"]
["Immidiate_borrower_basis","$O$43","","5_A_EF_X_X_X_TR_N3_V_B_A","Immidiate_borrower_basis","O",43,"Tillgång","Ej specificerad","Ej specificerad","Turkey","Hushåll + Hushållens icke-vinstdrivande","V"]
["Immidiate_borrower_basis","$P$43","","5_A_EF_X_X_X_TR_N9_V_B_A","Immidiate_borrower_basis","P",43,"Tillgång","Ej specificerad","Ej specificerad","Turkey","Ej motpartsfördelat","V"]
["Immidiate_borrower_basis","$F$44",0,"5_A_EF_X_X_X_U1_N_V_B_A","Immidiate_borrower_basis","F",44,"Tillgång","Ej specificerad","Ej specificerad","United Kingdom","(S1) Nationell ekonomi, totalt","V"]
["Immidiate_borrower_basis","$G$44","","5_A_EF_LR_X_X_U1_N_V_B_A","Immidiate_borrower_basis","G",44,"Tillgång","Ej specificerad","Återstående löptid <= 1 år","United Kingdom","(S1) Nationell ekonomi, totalt","V"]
["Immidiate_borrower_basis","$H$44","","5_A_EF_LS_X_X_U1_N_V_B_A","Immidiate_borrower_basis","H",44,"Tillgång","Ej specificerad","Återstående löptid > 1 år <= 2 år","United Kingdom","(S1) Nationell ekonomi, totalt","V"]
["Immidiate_borrower_basis","$I$44","","5_A_EF_LY_X_X_U1_N_V_B_A","Immidiate_borrower_basis","I",44,"Tillgång","Ej specificerad","Återstående löptid > 2 år","United Kingdom","(S1) Nationell ekonomi, totalt","V"]
["Immidiate_borrower_basis","$J$44","","5_A_EF_LZ_X_X_U1_N_V_B_A","Immidiate_borrower_basis","J",44,"Tillgång","Ej specificerad","Ej fördelad på återstående löptid","United Kingdom","(S1) Nationell ekonomi, totalt","V"]
["Immidiate_borrower_basis","$K$44","","5_A_EF_X_X_X_U1_N12111_V_B_A","Immidiate_borrower_basis","K",44,"Tillgång","Ej specificerad","Ej specificerad","United Kingdom","Banker inklusive centralbanker","V"]
["Immidiate_borrower_basis","$L$44","","5_A_EF_X_X_X_U1_NXU_V_B_A","Immidiate_borrower_basis","L",44,"Tillgång","Ej specificerad","Ej specificerad","United Kingdom","Off sektor + off ägda ftg utom banker","V"]
["Immidiate_borrower_basis","$M$44","","5_A_EF_X_X_X_U1_N122_V_B_A","Immidiate_borrower_basis","M",44,"Tillgång","Ej specificerad","Ej specificerad","United Kingdom","Icke-monetära finansinstitut","V"]
["Immidiate_borrower_basis","$N$44","","5_A_EF_X_X_X_U1_N11_V_B_A","Immidiate_borrower_basis","N",44,"Tillgång","Ej specificerad","Ej specificerad","United Kingdom","1 (S11)  Icke-finansiella företag","V"]
["Immidiate_borrower_basis","$O$44","","5_A_EF_X_X_X_U1_N3_V_B_A","Immidiate_borrower_basis","O",44,"Tillgång","Ej specificerad","Ej specificerad","United Kingdom","Hushåll + Hushållens icke-vinstdrivande","V"]
["Immidiate_borrower_basis","$P$44","","5_A_EF_X_X_X_U1_N9_V_B_A","Immidiate_borrower_basis","P",44,"Tillgång","Ej specificerad","Ej specificerad","United Kingdom","Ej motpartsfördelat","V"]
["Immidiate_borrower_basis","$F$45",{"$f":"IF(ISBLANK(INDIRECT(CONCATENATE(\"'\",A322,\"'\",\"!\",B322))),\"\",(INDIRECT(CONCATENATE(\"'\",A322,\"'\",\"!\",B322))))","v":0},"5_A_EF_X_X_X_US_N_V_B_A","Immidiate_borrower_basis","F",45,"Tillgång","Ej specificerad","Ej specificerad","United States","(S1) Nationell ekonomi, totalt","V"]
["Immidiate_borrower_basis","$G$45","","5_A_EF_LR_X_X_US_N_V_B_A","Immidiate_borrower_basis","G",45,"Tillgång","Ej specificerad","Återstående löptid <= 1 år","United States","(S1) Nationell ekonomi, totalt","V"]
["Immidiate_borrower_basis","$H$45","","5_A_EF_LS_X_X_US_N_V_B_A","Immidiate_borrower_basis","H",45,"Tillgång","Ej specificerad","Återstående löptid > 1 år <= 2 år","United States","(S1) Nationell ekonomi, totalt","V"]
["Immidiate_borrower_basis","$I$45","","5_A_EF_LY_X_X_US_N_V_B_A","Immidiate_borrower_basis","I",45,"Tillgång","Ej specificerad","Återstående löptid > 2 år","United States","(S1) Nationell ekonomi, totalt","V"]
["Immidiate_borrower_basis","$J$45","","5_A_EF_LZ_X_X_US_N_V_B_A","Immidiate_borrower_basis","J",45,"Tillgång","Ej specificerad","Ej fördelad på återstående löptid","United States","(S1) Nationell ekonomi, totalt","V"]
["Immidiate_borrower_basis","$K$45","","5_A_EF_X_X_X_US_N12111_V_B_A","Immidiate_borrower_basis","K",45,"Tillgång","Ej specificerad","Ej specificerad","United States","Banker inklusive centralbanker","V"]
["Immidiate_borrower_basis","$L$45","","5_A_EF_X_X_X_US_NXU_V_B_A","Immidiate_borrower_basis","L",45,"Tillgång","Ej specificerad","Ej specificerad","United States","Off sektor + off ägda ftg utom banker","V"]
["Immidiate_borrower_basis","$M$45","","5_A_EF_X_X_X_US_N122_V_B_A","Immidiate_borrower_basis","M",45,"Tillgång","Ej specificerad","Ej specificerad","United States","Icke-monetära finansinstitut","V"]
["Immidiate_borrower_basis","$N$45","","5_A_EF_X_X_X_US_N11_V_B_A","Immidiate_borrower_basis","N",45,"Tillgång","Ej specificerad","Ej specificerad","United States","1 (S11)  Icke-finansiella företag","V"]
["Immidiate_borrower_basis","$O$45","","5_A_EF_X_X_X_US_N3_V_B_A","Immidiate_borrower_basis","O",45,"Tillgång","Ej specificerad","Ej specificerad","United States","Hushåll + Hushållens icke-vinstdrivande","V"]
["Immidiate_borrower_basis","$P$45","","5_A_EF_X_X_X_US_N9_V_B_A","Immidiate_borrower_basis","P",45,"Tillgång","Ej specificerad","Ej specificerad","United States","Ej motpartsfördelat","V"]